Workbook

Sheet Portada

Sheet instrucciones

Sheet resumen todos los canales
C15: OBJETIVO Recolectar, consolidar y analizar las bases de datos de los puntos de atención de los canales puestos al servicio de la entidad, con el fin de cuantificar los usuarios atendidos, en cada uno de estos puntos de atención dispuestos por la entidad.
R23: CARACTERIZACIÓN
F25: TOTAL DE ATENCIONES TODOS LOS CANALES | L25: ATENCIONES POR FUNCIONARIO | R25: ATENCIONES POR GENERO
F42: TRAMITES Y SERVICIOS MAS FRECUENTES | L42: TOP 10 TEMAS FRECUENTES ASOCIADOS A LOS TRAMITES Y SERVICIOS | R42: ATENCIONES POR GRUPO DE VALOR

Sheet Presencial
K13: MES | L13: AGOSTO
D15: CANAL | K15: FUNCIONARIO QUE ATENDIÓ | L15: TOTAL
D16: PRESENCIAL | F16: El promedio de atenciones diario para el canal presencial es de | K16: PRESENCIAL
D17: Cad calle 26 mod-152 | I17: ciudadanos | K17: Cad calle 26 mod-152
K18: ALBEIRO ESCOBAR OCAMPO | L18: 31
F19: MES | G19: AGOSTO | K19: CRISTHIAN CAMILO MONTAÑA HERNÁNDEZ | L19: 62
F20: CANAL DE REGISTRO | G20: PRESENCIAL | K20: Total general | L20: 93
F21: PUNTO DE ATENCIÓN | G21: Cad calle 26 mod-152
F23: Cuenta de SEXO
F24: CANAL | G24: Ciudadanía | H24: Total general | K24: TRAMITE Y SERVICIO | L24: TOTAL
F25: Hombre | G25: 47 | H25: 47 | K25: AGOSTO
F26: Mujer | G26: 46 | H26: 46 | K26: PRESENCIAL
F27: Total general | G27: 93 | H27: 93 | K27: Cad calle 26 mod-152
K28: Cambio de uso de las zonas o bienes de uso público | L28: 1
K29: Estudio de la viabilidad de las solicitudes de administración de bienes públicos | L29: 5
K30: Certificación de la propiedad inmobiliaria distrital | L30: 19
K31: Incorporación y entrega de las áreas de cesión a favor del municipio | L31: 20
K32: Consulta general | L32: 23
K33: Asesoría en administración y sostenibilidad del espacio público | L33: 25
K34: Total general | L34: 93
K37: TOP 5 TEMAS FRECUENTES ASOCIADOS A LOS TRAMITES Y SERVICIOS | L37: TOTAL
K38: AGOSTO
K39: PRESENCIAL
K40: Cad calle 26 mod-152
K41: Autorización de uso | L41: 5
K42: Cabida y linderos | L42: 16
K43: Certificación de la propiedad inmobiliaria | L43: 16
K44: Asesoría en administración y sostenibilidad del espacio público | L44: 19
K45: Consulta radicado | L45: 20

Sheet Supercade movil
C17: Dirección del Sistema Distrital de Servicio a la Ciudadanía
C18: Es la estrategia de atención móvil que articula a las diferentes entidades, del orden distrital, nacional y privado que ejercen funciones públicas para la prestación de un servicio integral en el ámbito local, donde se ofrece a la ciudadanía información y acceso a
C19: programas y trámites, prestando un servicio más amable y efectivo, en diferentes zonas de la ciudad. | M19: Durante el mes de agosto el DADEP participó en los SuperCADE Móvil convocados por la Secretaría General, en la localidad de Los Martires y en el Portal de las Américas.
C20: Estos espacios son aprovechados por las Entidades presentes, para prestar información acerca de Trámites, Servicios, campañas, Trámites en línea, así como jornadas pedagógicas, culturales, recreativas, artísticas y de sensibilización, que constituye una alternativa para llegar a los sectores más deprimidos de la ciudad con una oferta institucional, beneficiando así a la comunidad del sector, abriendo un espacio de participación e integración ciudadana y generando un acercamiento de la Administración Distrital a los habitantes del sector.
C21: El SuperCADE Móvil tiene como propósito, prestar Servicio de la Ciudadanía, que garantice la calidad y oportunidad en la atención de los servicios y trámites para los ciudadanos y ciudadanas.
C22: La atención personalizada garantiza que el ciudadano reciba información de manera amable, efectiva y oportuna a través de la jornada del SuperCADE Móvil.
C23: Ejercer una gestión pública exitosa frente a la oferta institucional articulada y oportuna de acuerdo con las necesidades evidenciadas en diferentes áreas de la ciudad, con el fin de facilitar a los ciudadanos y ciudadanas acceso y conocimiento de la gestión de la Administración Distrital y Nacional.

Sheet ferias y otros encuentros
C19: La Secretaría General de la Alcaldía Mayor de Bogotá realiza ferias móviles en diferentes puntos de Bogotá, con el objetivo de acercar los servicios del Distrito a la ciudadanía y brindar el acompañamiento necesario en los temas que más benefician a familias. | M19: Durante el mes de agosto el DADEP participó en las ferias de servicios convocadas por la Secretaría General, en la localidad de Los Martires y en el Portal de las Américas.

Sheet Telefónico
K13: MES | L13: AGOSTO
D15: CANAL | K15: FUNCIONARIO QUE ATENDIÓ | L15: TOTAL
D16: TELEFÓNICO | F16: El promedio de atenciones diario para el canal telefónico es de | K16: TELEFÓNICO
D17: Conmutador | I17: ciudadanos | K17: Conmutador
K18: CLAUDIA PATRICIA QUINTERO CACERES | L18: 47
K19: JANETH REDONDO ACOSTA | L19: 258
K20: Total general | L20: 305
F21: MES | G21: AGOSTO
F23: POR GÉNERO
F24: GRUPO DE VALOR | G24: Hombre | H24: Mujer | I24: Total general | K24: TRAMITE Y SERVICIO | L24: TOTAL
F25: TELEFÓNICO | G25: 140 | H25: 165 | I25: 305 | K25: AGOSTO
F26: Conmutador | G26: 140 | H26: 165 | I26: 305 | K26: TELEFÓNICO
F27: Ciudadanía | G27: 132 | H27: 157 | I27: 289 | K27: Conmutador
F28: Empresa privada | H28: 3 | I28: 3 | K28: Consulta general | L28: 219
F29: Entidades y Organismos Distritales | G29: 5 | H29: 5 | I29: 10 | K29: Asesoría en administración y sostenibilidad del espacio público | L29: 56
F30: Junta de Acción Comunal | G30: 3 | I30: 3 | K30: Estudio de la viabilidad de las solicitudes de administración de bienes públicos | L30: 12
F31: Total general | G31: 140 | H31: 165 | I31: 305 | K31: Incorporación y entrega de las áreas de cesión a favor del municipio | L31: 8
K32: Certificación de la propiedad inmobiliaria distrital | L32: 5
K33: Cambio de uso de las zonas o bienes de uso público | L33: 2
K34: Observatorio del espacio público página web | L34: 2
K35: Titulación de zonas de cesión al distrito capital | L35: 1
K36: Total general | L36: 305
K38: TOP 5 TEMAS FRECUENTES ASOCIADOS A LOS TRAMITES O SERVICIOS | L38: TOTAL
K39: AGOSTO
K40: TELEFÓNICO
K41: Conmutador
K42: Competencia otras entidades | L42: 77
K43: Transferencia de llamada | L43: 51
K44: Consulta radicado | L44: 51
K45: Información pública | L45: 16
K46: Autorización de uso | L46: 12

Sheet Virtual
D16: MES | E16: AGOSTO | M16: MES | N16: AGOSTO
D18: CANAL | E18: TOTAL | M18: FUNCIONARIO QUE ATENDIÓ | N18: TOTAL
D19: VIRTUAL | G19: El promedio de atenciones diario para el canal virtual es de | M19: VIRTUAL
D20: Correo electronico | E20: 1470 | J20: ciudadanos | M20: CRISTHIAN CAMILO MONTAÑA HERNÁNDEZ | N20: 1574
D21: Bogotá te escucha | E21: 537 | M21: ZULMA YAZMIN LÓPEZ VÁSQUEZ | N21: 196
D22: Ventanilla de radicación | E22: 139 | M22: CLAUDIA PATRICIA QUINTERO CACERES | N22: 141
D23: Chat | E23: 57 | M23: WILMAR FERNANDO GUALDRÓN ARDILA | N23: 74
D24: Red social facebook | E24: 6 | G24: MES | H24: AGOSTO | M24: LILIANA AGUILAR PUENTES | N24: 74
D25: Red social twiter | E25: 3 | M25: MARTHA LUCIA GÓMEZ GONZÁLEZ | N25: 65
G26: POR GÉNERO | M26: JANETH REDONDO ACOSTA | N26: 61
G27: GRUPO DE VALOR | H27: Hombre | I27: Mujer | J27: N/A | K27: Total general | M27: LINA YOHANNA PARRA PATRÓN | N27: 17
G28: VIRTUAL | H28: 977 | I28: 794 | J28: 441 | K28: 2212 | M28: AURA CRISTINA IZQUIERDO PACHECO | N28: 9
G29: Anónimo | I29: 1 | J29: 167 | K29: 168 | M29: ALEJANDRA MARIA LOPEZ LONDONO | N29: 1
G30: Ciudadanía | H30: 333 | I30: 238 | K30: 571 | M30: Total general | N30: 2212
G31: Empresa privada | H31: 62 | I31: 101 | J31: 134 | K31: 297
G32: Entidades y Organismos Distritales | H32: 559 | I32: 438 | J32: 54 | K32: 1051
G33: Grupo comunitario | H33: 1 | I33: 4 | J33: 50 | K33: 55
G34: Junta Administradora Local | H34: 7 | I34: 1 | J34: 2 | K34: 10 | M34: TRAMITE Y SERVICIO | N34: TOTAL
G35: Junta de Acción Comunal | H35: 15 | I35: 11 | J35: 34 | K35: 60 | M35: AGOSTO
G36: Total general | H36: 977 | I36: 794 | J36: 441 | K36: 2212 | M36: VIRTUAL
G37: % POR GÉNERO | H37: =+H36/$K$36 -> 0.441681736 | I37: =+I36/$K$36 -> 0.3589511754 | J37: 0.1993670886 | M37: Consulta general | N37: 1327
M38: Asesoría en administración y sostenibilidad del espacio público | N38: 425
G39: El item N/A (no aplica - hace referencia a los demás grupos de valor descritos), o que no existe información de referencia de género para registrar este ítem. | M39: Estudio de la viabilidad de las solicitudes de administración de bienes públicos | N39: 270
M40: Certificación de la propiedad inmobiliaria distrital | N40: 128
M41: Incorporación y entrega de las áreas de cesión a favor del municipio | N41: 32
M42: Titulación de zonas de cesión al distrito capital | N42: 13
M43: Observatorio del espacio público página web | N43: 10
M44: Cambio de uso de las zonas o bienes de uso público | N44: 7
M45: Total general | N45: 2212
M48: TOP 5 TEMAS FRECUENTES ASOCIADOS A LOS TRAMITES Y SERVICIOS | N48: TOTAL
M49: AGOSTO
M50: VIRTUAL
M51: Peticiones entre entidades | N51: 1035
M52: Asesoría en administración y sostenibilidad del espacio público | N52: 182
M53: CAMEP Contrato de administración y mantenimiento | N53: 159
M54: Certificación de la propiedad inmobiliaria | N54: 125
M55: Competencia otras entidades | N55: 98
D71: MES | E71: AGOSTO | M71: MES | N71: AGOSTO
D73: CANAL | E73: TOTAL | M73: TOTAL | N73: TOTAL
D74: VIRTUAL | G74: El promedio de atenciones diario para el correo electrónico es de | M74: FUNCIONARIO QUE ATENDIÓ | N74: Correo electronico
D75: Correo electronico | E75: 1470 | J75: ciudadanos | M75: VIRTUAL
M76: CRISTHIAN CAMILO MONTAÑA HERNÁNDEZ | N76: 1470
M77: Total general | N77: 1470
G79: MES | H79: AGOSTO | M79: TOTAL | N79: TOTAL
M80: TRAMITE O SERVICIO | N80: Correo electronico
G81: POR GÉNERO | M81: AGOSTO
G82: GRUPO DE VALOR | H82: Hombre | I82: Mujer | J82: N/A | K82: Total general | M82: VIRTUAL
G83: Correo electronico | M83: Consulta general | N83: 1144
G84: Anónimo | J84: 7 | K84: 7 | M84: Estudio de la viabilidad de las solicitudes de administración de bienes públicos | N84: 163
G85: Ciudadanía | H85: 74 | I85: 66 | K85: 140 | M85: Asesoría en administración y sostenibilidad del espacio público | N85: 126
G86: Empresa privada | H86: 60 | I86: 98 | J86: 65 | K86: 223 | M86: Incorporación y entrega de las áreas de cesión a favor del municipio | N86: 20
G87: Entidades y Organismos Distritales | H87: 557 | I87: 436 | J87: 53 | K87: 1046 | M87: Certificación de la propiedad inmobiliaria distrital | N87: 15
G88: Grupo comunitario | H88: 1 | I88: 2 | J88: 11 | K88: 14 | M88: Cambio de uso de las zonas o bienes de uso público | N88: 2
G89: Junta Administradora Local | H89: 7 | I89: 1 | J89: 1 | K89: 9 | M89: Total general | N89: 1470
G90: Junta de Acción Comunal | H90: 15 | I90: 11 | J90: 5 | K90: 31
G91: Total general | H91: 714 | I91: 614 | J91: 142 | K91: 1470
M93: TOTAL | N93: TOTAL
M94: TOP 5 TEMAS FRECUENTES ASOCIADOS A LOS TRAMITES O SERVICIOS | N94: Correo electronico
M95: AGOSTO
M96: VIRTUAL
M97: Peticiones entre entidades | N97: 1033
M98: CAMEP Contrato de administración y mantenimiento | N98: 152
M99: Asesoría en administración y sostenibilidad del espacio público | N99: 91
M100: Asuntos Jurídicos | N100: 36
M101: Talento humano | N101: 26
D130: MES | E130: AGOSTO | M130: MES | N130: AGOSTO
D132: CANAL | E132: TOTAL | M132: TOTAL | N132: TOTAL
D133: VIRTUAL | G133: El promedio de atenciones diario para Bogotá Te Escucha es de | M133: FUNCIONARIO QUE ATENDIÓ | N133: Bogotá te escucha
D134: Bogotá te escucha | E134: 537 | J134: ciudadanos | M134: VIRTUAL
M135: ZULMA YAZMIN LÓPEZ VÁSQUEZ | N135: 196
M136: CLAUDIA PATRICIA QUINTERO CACERES | N136: 141
M137: CRISTHIAN CAMILO MONTAÑA HERNÁNDEZ | N137: 104
G138: MES | H138: AGOSTO | M138: LILIANA AGUILAR PUENTES | N138: 74
M139: LINA YOHANNA PARRA PATRÓN | N139: 17
G140: POR GÉNERO | M140: JANETH REDONDO ACOSTA | N140: 4
G141: GRUPO DE VALOR | H141: Hombre | I141: Mujer | J141: N/A | K141: Total general | M141: ALEJANDRA MARIA LOPEZ LONDONO | N141: 1
G142: Bogotá te escucha | M142: Total general | N142: 537
G143: Anónimo | I143: 1 | J143: 154 | K143: 155
G144: Ciudadanía | H144: 177 | I144: 111 | K144: 288
G145: Empresa privada | H145: 2 | I145: 3 | J145: 41 | K145: 46
G146: Entidades y Organismos Distritales | H146: 2 | I146: 2 | J146: 1 | K146: 5 | M146: TOTAL | N146: TOTAL
G147: Grupo comunitario | I147: 2 | J147: 25 | K147: 27 | M147: TRAMITE O SERVICIO | N147: Bogotá te escucha
G148: Junta Administradora Local | J148: 1 | K148: 1 | M148: AGOSTO
G149: Junta de Acción Comunal | J149: 15 | K149: 15 | M149: VIRTUAL
G150: Total general | H150: 181 | I150: 119 | J150: 237 | K150: 537 | M150: Asesoría en administración y sostenibilidad del espacio público | N150: 232
M151: Consulta general | N151: 146
M152: Certificación de la propiedad inmobiliaria distrital | N152: 75
M153: Estudio de la viabilidad de las solicitudes de administración de bienes públicos | N153: 60
M154: Incorporación y entrega de las áreas de cesión a favor del municipio | N154: 8
M155: Titulación de zonas de cesión al distrito capital | N155: 7
M156: Observatorio del espacio público página web | N156: 6
M157: Cambio de uso de las zonas o bienes de uso público | N157: 3
M158: Total general | N158: 537
M160: TOTAL | N160: TOTAL
M161: TOP 5 TEMAS FRECUENTES ASOCIADOS A LOS TRAMITES O SERVICIOS | N161: Bogotá te escucha
M162: AGOSTO
M163: VIRTUAL
M164: Competencia otras entidades | N164: 87
M165: Certificación de la propiedad inmobiliaria | N165: 72
M166: Asesoría en administración y sostenibilidad del espacio público | N166: 63
M167: Recuperación de Espacio Público | N167: 34
M168: Oferta de servicios | N168: 31
D184: MES | E184: AGOSTO | M184: MES | N184: AGOSTO
D186: CANAL | E186: TOTAL | M186: TOTAL | N186: TOTAL
D187: VIRTUAL | G187: El promedio de atenciones diario para el chat es de | M187: FUNCIONARIO QUE ATENDIÓ | N187: Chat
D188: Chat | E188: 57 | J188: ciudadanos | M188: VIRTUAL
M189: JANETH REDONDO ACOSTA | N189: 57
M190: Total general | N190: 57
G192: MES | H192: AGOSTO
G194: POR GÉNERO | M194: TOTAL | N194: TOTAL
G195: GRUPO DE VALOR | H195: Hombre | I195: Mujer | J195: N/A | K195: Total general | M195: TRAMITE O SERVICIO | N195: Chat
G196: Chat | M196: AGOSTO
G197: Anónimo | J197: 1 | K197: 1 | M197: VIRTUAL
G198: Ciudadanía | H198: 23 | I198: 33 | K198: 56 | M198: Consulta general | N198: 33
G199: Total general | H199: 23 | I199: 33 | J199: 1 | K199: 57 | M199: Asesoría en administración y sostenibilidad del espacio público | N199: 18
M200: Certificación de la propiedad inmobiliaria distrital | N200: 3
M201: Cambio de uso de las zonas o bienes de uso público | N201: 1
M202: Incorporación y entrega de las áreas de cesión a favor del municipio | N202: 1
M203: Estudio de la viabilidad de las solicitudes de administración de bienes públicos | N203: 1
M204: Total general | N204: 57
M208: TOTAL | N208: TOTAL
M209: TOP 5 TEMAS FRECUENTES ASOCIADOS A LOS TRAMITES O SERVICIOS | N209: Chat
M210: AGOSTO
M211: VIRTUAL
M212: Consulta radicado | N212: 14
M213: Competencia otras entidades | N213: 11
M214: Asesoría en administración y sostenibilidad del espacio público | N214: 7
M215: Denuncia Cerramiento | N215: 6
M216: Denuncia otros elementos | N216: 3
M217: Transferencia de llamada personal | N217: 3
M218: Cómo radicar en SDQS | N218: 3
M219: Certificación de la propiedad inmobiliaria | N219: 3
D237: MES | E237: AGOSTO | M237: MES | N237: AGOSTO
D239: CANAL | E239: TOTAL | M239: TOTAL | N239: TOTAL
D240: REDES SOCIALES | F240: El promedio de atenciones diario para Redes Sociales es de | M240: FUNCIONARIO QUE ATENDIÓ | N240: Red social facebook | O240: Red social twiter
D241: Red social facebook | E241: 6 | J241: ciudadanos | M241: VIRTUAL
D242: Red social twiter | E242: 3 | M242: AURA CRISTINA IZQUIERDO PACHECO | N242: 6 | O242: 3
M243: Total general | N243: 6 | O243: 3
G245: MES | H245: AGOSTO
G247: POR GÉNERO | M247: TOTAL | N247: TOTAL
G248: GRUPO DE VALOR | H248: Hombre | I248: Mujer | J248: Total general | M248: TRAMITE O SERVICIO | N248: Red social facebook | O248: Red social twiter
G249: Red social facebook | M249: AGOSTO
G250: Ciudadanía | H250: 3 | I250: 3 | J250: 6 | M250: VIRTUAL
G251: Red social twiter | M251: Asesoría en administración y sostenibilidad del espacio público | N251: 5 | O251: 2
G252: Ciudadanía | H252: 2 | I252: 1 | J252: 3 | M252: Consulta general | N252: 1 | O252: 1
G253: Total general | H253: 5 | I253: 4 | J253: 9 | M253: Total general | N253: 6 | O253: 3
M261: TOTAL | N261: TOTAL
M262: TOP 5 TEMAS FRECUENTES ASOCIADOS A LOS TRAMITES O SERVICIOS | N262: Red social facebook | O262: Red social twiter
M263: AGOSTO
M264: VIRTUAL
M265: Asesoría en administración y sostenibilidad del espacio público | N265: 3 | O265: 2
M266: Denuncia ventas informales | N266: 2
M267: Talento humano | N267: 1
M268: Información pública | O268: 1
D281: MES | E281: AGOSTO | M281: MES | N281: AGOSTO
D283: CANAL | E283: TOTAL | M283: TOTAL | N283: TOTAL
D284: REDES SOCIALES | G284: El promedio de atenciones diario para Ventanilla de Radicación Webservice es de | M284: FUNCIONARIO QUE ATENDIÓ | N284: Ventanilla de radicación
D285: Ventanilla de radicación Webservice | E285: 139 | J285: ciudadanos | M285: VIRTUAL
M286: WILMAR FERNANDO GUALDRÓN ARDILA | N286: 74
M287: MARTHA LUCIA GÓMEZ GONZÁLEZ | N287: 65
M288: Total general | N288: 139
G289: MES | H289: AGOSTO
G291: POR GÉNERO | M291: TOTAL | N291: TOTAL
G292: GRUPO DE VALOR | H292: Hombre | I292: Mujer | J292: N/A | K292: Total general | M292: TRAMITE O SERVICIO | N292: Ventanilla de radicación
G293: Ventanilla de radicación | M293: AGOSTO
G294: Anónimo | J294: 5 | K294: 5 | M294: VIRTUAL
G295: Ciudadanía | H295: 54 | I295: 24 | K295: 78 | M295: Estudio de la viabilidad de las solicitudes de administración de bienes públicos | N295: 46
G296: Empresa privada | J296: 28 | K296: 28 | M296: Asesoría en administración y sostenibilidad del espacio público | N296: 42
G297: Grupo comunitario | J297: 14 | K297: 14 | M297: Certificación de la propiedad inmobiliaria distrital | N297: 35
G298: Junta de Acción Comunal | J298: 14 | K298: 14 | M298: Titulación de zonas de cesión al distrito capital | N298: 6
G299: Total general | H299: 54 | I299: 24 | J299: 61 | K299: 139 | M299: Observatorio del espacio público página web | N299: 4
M300: Incorporación y entrega de las áreas de cesión a favor del municipio | N300: 3
M301: Consulta general | N301: 2
M302: Cambio de uso de las zonas o bienes de uso público | N302: 1
M303: Total general | N303: 139
M305: TOTAL | N305: TOTAL
M306: TOP 5 TEMAS FRECUENTES ASOCIADOS A LOS TRAMITES O SERVICIOS | N306: Ventanilla de radicación
M307: AGOSTO
M308: VIRTUAL
M309: Certificación de la propiedad inmobiliaria | N309: 35
M310: Recuperación de Espacio Público | N310: 20
M311: Asesoria en contratos de administración | N311: 19
M312: Autorización de uso | N312: 19
M313: Asesoría en administración y sostenibilidad del espacio público | N313: 16

Sheet datos (hidden)
A1: 1 | E1: 2 | L1: MES | M1: (Todas) | P1: MES | Q1: (Todas) | AZ1: MES | BA1: AGOSTO | BE1: MES | BF1: AGOSTO | BH1: MES | BI1: AGOSTO | BL1: MES | BM1: AGOSTO | BO1: MES | BP1: AGOSTO | BY1: MES | BZ1: AGOSTO | CB1: MES | CC1: AGOSTO | DX1: CANAL DE REGISTRO | DY1: VIRTUAL
A2: TOTAL DE ATENCIONES | E2: ATENCIONES POR FUNCIONARIO | L2: CANAL DE REGISTRO | M2: (Todas) | P2: CANAL DE REGISTRO | Q2: (Todas) | W2: =+X3 -> TRAMITE/SERVICIO | Z2: =+AA3 -> TOP 10 TEMAS FRECUENTES | AD2: =+AD4 -> Cad calle 26 mod-152 | AG2: =+AG4 -> Bogotá te escucha | AJ2: =+AJ4 -> Chat | AM2: =+AM4 -> Conmutador | AP2: =+AP4 -> Correo electronico | AS2: Redes sociales | AV2: =+AV4 -> Ventanilla de radicación | BL2: CANAL DE REGISTRO | BM2: TELEFÓNICO | BO2: CANAL DE REGISTRO | BP2: TELEFÓNICO | BT2: MES | BU2: AGOSTO | BY2: CANAL DE REGISTRO | BZ2: VIRTUAL | CB2: CANAL DE REGISTRO | CC2: VIRTUAL | CI2: CANAL DE REGISTRO | CJ2: VIRTUAL | CL2: POR GÉNERO | CR2: CANAL DE REGISTRO | CS2: VIRTUAL | CU2: CANAL DE REGISTRO | CV2: VIRTUAL | CW2: CANAL DE REGISTRO | CX2: VIRTUAL | DA2: CANAL DE REGISTRO | DB2: VIRTUAL | DD2: CANAL DE REGISTRO | DE2: VIRTUAL | DH2: CANAL DE REGISTRO | DI2: VIRTUAL | DK2: CANAL DE REGISTRO | DL2: VIRTUAL | DO2: CANAL DE REGISTRO | DP2: VIRTUAL | DR2: CANAL DE REGISTRO | DS2: VIRTUAL | DU2: CANAL DE REGISTRO | DV2: VIRTUAL | DX2: PUNTO DE ATENCIÓN | DY2: (Varios elementos)
A3: Cuenta de CANAL DE REGISTRO | E3: Cuenta de ATENDIDO POR | W3: Etiquetas de fila | X3: TRAMITE/SERVICIO | Z3: Etiquetas de fila | AA3: TOP 10 TEMAS FRECUENTES | AD3: Etiquetas de fila | AE3: TOTAL PUNTO DE ATENCIÓN | AG3: Etiquetas de fila | AH3: TOTAL PUNTO DE ATENCIÓN | AJ3: Etiquetas de fila | AK3: TOTAL PUNTO DE ATENCIÓN | AM3: Etiquetas de fila | AN3: TOTAL PUNTO DE ATENCIÓN | AP3: Etiquetas de fila | AQ3: TOTAL PUNTO DE ATENCIÓN | AS3: Etiquetas de fila | AT3: TOTAL PUNTO DE ATENCIÓN | AV3: Etiquetas de fila | AW3: TOTAL PUNTO DE ATENCIÓN | AZ3: Etiquetas de fila | BA3: Cuenta de CANAL DE REGISTRO | BE3: Etiquetas de fila | BF3: Cuenta de CANAL DE REGISTRO | BH3: Etiquetas de fila | BI3: Cuenta de CANAL DE REGISTRO | BT3: CANAL DE REGISTRO | BU3: TELEFÓNICO | CI3: MES | CJ3: AGOSTO | CL3: GRUPO DE VALOR | CM3: Hombre | CN3: Mujer | CO3: N/A | CP3: Total general | CR3: MES | CS3: AGOSTO | CU3: MES | CV3: AGOSTO | CW3: MES | CX3: AGOSTO | DA3: MES | DB3: AGOSTO | DD3: MES | DE3: AGOSTO | DH3: MES | DI3: AGOSTO | DK3: MES | DL3: AGOSTO | DO3: MES | DP3: AGOSTO | DR3: MES | DS3: AGOSTO | DU3: MES | DV3: AGOSTO | DX3: MES | DY3: AGOSTO
A4: CANAL DE REGISTRO | B4: Total | E4: ATENDIDO POR | F4: Total | L4: Etiquetas de fila | M4: Cuenta de SEXO | N4: Cuenta de SEXO2 | P4: Etiquetas de fila | Q4: Cuenta de SEXO | R4: Cuenta de SEXO2 | W4: Cambio de uso de las zonas o bienes de uso público | X4: 47 | Z4: Denuncia otros elementos | AA4: 520 | AD4: Cad calle 26 mod-152 | AE4: 835 | AG4: Bogotá te escucha | AH4: 3987 | AJ4: Chat | AK4: 772 | AM4: Conmutador | AN4: 1706 | AP4: Correo electronico | AQ4: 9673 | AS4: Red social facebook | AT4: 72 | AV4: Ventanilla de radicación | AW4: 946 | AZ4: PRESENCIAL | BA4: 93 | BE4: Total general | BH4: PRESENCIAL | BI4: 93 | BL4: Etiquetas de fila | BM4: Cuenta de PUNTO DE ATENCIÓN | BO4: Cuenta de PUNTO DE ATENCIÓN | BP4: Etiquetas de columna | BY4: Etiquetas de fila | BZ4: Cuenta de PUNTO DE ATENCIÓN | CB4: Cuenta de PUNTO DE ATENCIÓN | CC4: Etiquetas de columna | CL4: VIRTUAL
A5: PRESENCIAL | B5: 835 | E5: PUNTO FOCAL OAJ | F5: 1 | L5: Hombre | M5: 7981 | N5: 0.4425038811 | P5: Servidores públicos (funcionarios y contratistas) | Q5: 14 | R5: 0.0007762253271 | W5: Titulación de zonas de cesión al distrito capital | X5: 48 | Z5: CAMEP Contrato de administración y mantenimiento | AA5: 920 | AD5: Total general | AE5: 835 | AG5: Total general | AH5: 3987 | AJ5: Total general | AK5: 772 | AM5: Total general | AN5: 1706 | AP5: Total general | AQ5: 9673 | AS5: Red social instagram | AT5: 3 | AV5: Total general | AW5: 946 | AZ5: Total general | BA5: 93 | BH5: 15 antonio nariño | BI5: 1 | BL5: Conmutador | BM5: 305 | BO5: Etiquetas de fila | BP5: Hombre | BQ5: Mujer | BR5: Total general | BT5: Etiquetas de fila | BU5: Cuenta de PUNTO DE ATENCIÓN | BY5: Correo electronico | BZ5: 1470 | CB5: Etiquetas de fila | CC5: Hombre | CD5: Mujer | CE5: N/A | CF5: Total general | CI5: Etiquetas de fila | CJ5: Cuenta de PUNTO DE ATENCIÓN | CL5: Anónimo | CO5: 7 | CP5: 7 | CR5: Etiquetas de fila | CS5: Cuenta de PUNTO DE ATENCIÓN | CU5: Etiquetas de fila | CV5: Cuenta de PUNTO DE ATENCIÓN | CW5: Etiquetas de fila | CX5: Cuenta de PUNTO DE ATENCIÓN | DA5: Etiquetas de fila | DB5: Cuenta de PUNTO DE ATENCIÓN | DD5: Etiquetas de fila | DE5: Cuenta de PUNTO DE ATENCIÓN | DH5: Etiquetas de fila | DI5: Cuenta de PUNTO DE ATENCIÓN | DK5: Etiquetas de fila | DL5: Cuenta de PUNTO DE ATENCIÓN | DO5: Etiquetas de fila | DP5: Cuenta de PUNTO DE ATENCIÓN | DR5: Etiquetas de fila | DS5: Cuenta de PUNTO DE ATENCIÓN | DU5: Etiquetas de fila | DV5: Cuenta de PUNTO DE ATENCIÓN | DX5: Etiquetas de fila | DY5: Cuenta de PUNTO DE ATENCIÓN
A6: TELEFÓNICO | B6: 1706 | E6: FERNANDO ARTURO LIZARAZO BERNAL | F6: 3 | L6: Mujer | M6: 7017 | N6: 0.3890552229 | P6: Entidades y Organismos Nacionales | Q6: 64 | R6: 0.003548458638 | W6: Observatorio del espacio público página web | X6: 50 | Z6: Competencia otras entidades | AA6: 925 | AS6: Red social twiter | AT6: 42 | AZ6: total presencial | BA6: =+BA4 -> 93 | BH6: 12 barrios unidos | BI6: 3 | BL6: Total general | BM6: 305 | BO6: Conmutador | BP6: 140 | BQ6: 165 | BR6: 305 | BT6: Conmutador | BU6: 305 | BY6: Bogotá te escucha | BZ6: 537 | CB6: Anónimo | CD6: 1 | CE6: 167 | CF6: 168 | CI6: Correo electronico | CJ6: 1470 | CL6: Ciudadanía | CM6: 74 | CN6: 66 | CP6: 140 | CR6: Bogotá te escucha | CS6: 537 | CU6: Bogotá te escucha | CV6: 537 | CW6: Bogotá te escucha | CX6: 537 | DA6: Chat | DB6: 57 | DD6: Chat | DE6: 57 | DH6: Red social facebook | DI6: 6 | DK6: Red social facebook | DL6: 6 | DO6: Ventanilla de radicación | DP6: 139 | DR6: Ventanilla de radicación | DS6: 139 | DU6: Correo electronico | DV6: 1470 | DX6: 20 sumapaz | DY6: 1
A7: VIRTUAL | B7: 15495 | E7: JOSE JIMMY SALCEDO HERNANDEZ | F7: 7 | L7: N/A | M7: 3038 | N7: 0.168440896 | P7: JAL | Q7: 108 | R7: 0.005988023952 | W7: Incorporación y entrega de las áreas de cesión a favor del municipio | X7: 830 | Z7: Asesoría en administración y sostenibilidad del espacio público | AA7: 1792 | AS7: Total general | AT7: 117 | AZ7: dias hábiles | BA7: 21 | BB7: =+BA6/BA7 -> 4.428571429 | BH7: 09 fontibón | BI7: 4 | BJ7: =+BI6/BI7 -> 0.75 | BL7: TOTAL TELEFONICO | BM7: =+BM5 -> 305 | BO7: Ciudadanía | BP7: 132 | BQ7: 157 | BR7: 289 | BT7: 11 suba | BU7: 32 | BY7: Ventanilla de radicación | BZ7: 139 | CB7: Ciudadanía | CC7: 333 | CD7: 238 | CF7: 571 | CI7: Total general | CJ7: 1470 | CL7: Empresa privada | CM7: 60 | CN7: 98 | CO7: 65 | CP7: 223 | CR7: Total general | CS7: 537 | CU7: 17 la candelaria | CV7: 1 | CW7: Total general | CX7: 537 | DA7: Total general | DB7: 57 | DD7: No registra | DE7: 57 | DH7: Red social twiter | DI7: 3 | DK7: 09 fontibón | DL7: 1 | DO7: Total general | DP7: 139 | DR7: No registra | DS7: 139 | DU7: 20 sumapaz | DV7: 1 | DX7: Fuera de Bogotá | DY7: 5
A8: Total general | B8: 18036 | E8: LINA YOHANNA PARRA PATRÓN | F8: 37 | L8: Total general | M8: 18036 | N8: 1 | P8: Grupo comunitario | Q8: 232 | R8: 0.01286316256 | W8: Certificación de la propiedad inmobiliaria distrital | X8: 1032 | Z8: Peticiones entre entidades | AA8: 6208 | BH8: 03 santa fe | BI8: 4 | BL8: dias hábiles | BM8: 21 | BN8: =+BM7/BM8 -> 14.52380952 | BO8: Empresa privada | BQ8: 3 | BR8: 3 | BT8: 08 kennedy | BU8: 31 | BY8: Chat | BZ8: 57 | CB8: Empresa privada | CC8: 62 | CD8: 101 | CE8: 134 | CF8: 297 | CI8: Correo electronico | CJ8: =+GETPIVOTDATA("PUNTO DE ATENCIÓN",$CI$5,"PUNTO DE ATENCIÓN","Correo electronico ") -> 1470 | CL8: Entidades y Organismos Distritales | CM8: 557 | CN8: 436 | CO8: 53 | CP8: 1046 | CR8: Correo electronico | CS8: =+CS6 -> 537 | CU8: 15 antonio nariño | CV8: 1 | CW8: Correo electronico | CX8: =+CX6 -> 537 | DA8: Correo electronico | DB8: =+DB6 -> 57 | DD8: Total general | DE8: 57 | DH8: Total general | DI8: 9 | DK8: 11 suba | DL8: 1 | DO8: Redes sociales | DP8: =DP6 -> 139 | DR8: Total general | DS8: 139 | DU8: Fuera de Bogotá | DV8: 5 | DX8: 14 los mártires | DY8: 6
E9: SERGIO ERICK LIZARAZO ORTEGA | F9: 56 | P9: JAC | Q9: 486 | R9: 0.02694610778 | W9: Estudio de la viabilidad de las solicitudes de administración de bienes públicos | X9: 1569 | Z9: Total general | AA9: 10365 | AD9: Cad calle 26 mod-152 | AG9: Bogotá te escucha | AJ9: Chat | AM9: Conmutador | AP9: Correo electronico | AS9: Redes sociales | AV9: Ventanilla de radicación | AZ9: Cuenta de SEXO | BH9: 16 puente aranda | BI9: 4 | BO9: Entidades y Organismos Distritales | BP9: 5 | BQ9: 5 | BR9: 10 | BT9: 10 engativá | BU9: 30 | BY9: Red social facebook | BZ9: 6 | CB9: Entidades y Organismos Distritales | CC9: 559 | CD9: 438 | CE9: 54 | CF9: 1051 | CI9: dias hábiles | CJ9: 21 | CK9: =+CJ8/CJ9 -> 70 | CL9: Grupo comunitario | CM9: 1 | CN9: 2 | CO9: 11 | CP9: 14 | CR9: dias hábiles | CS9: 21 | CU9: 05 usme | CV9: 2 | CW9: dias hábiles | CX9: 21 | CY9: =+CS8/CS9 -> 25.57142857 | DA9: dias hábiles | DB9: 21 | DC9: =+DB8/DB9 -> 2.714285714 | DD9: dias hábiles | DE9: 21 | DF9: =+DE8/DE9 -> 2.714285714 | DH9: dias hábiles | DI9: 21 | DJ9: =+DI8/DI9 -> 0.4285714286 | DK9: No registra | DL9: 4 | DO9: dias hábiles | DP9: 21 | DQ9: =+DP8/DP9 -> 6.619047619 | DR9: dias hábiles | DS9: 21 | DU9: 06 tunjuelito | DV9: 5 | DX9: 15 antonio nariño | DY9: 7
A10: TOTAL SELECCIONADO | B10: =+GETPIVOTDATA("CANAL DE REGISTRO",$A$3) -> 18036 | E10: ALEJANDRA MARIA LOPEZ LONDONO | F10: 67 | P10: Anónimo | Q10: 1227 | R10: 0.06803060546 | W10: Asesoría en administración y sostenibilidad del espacio público | X10: 4520 | AD10: Etiquetas de fila | AE10: TOTAL PUNTO DE ATENCIÓN | AG10: Etiquetas de fila | AH10: TOTAL PUNTO DE ATENCIÓN | AJ10: Etiquetas de fila | AK10: TOTAL PUNTO DE ATENCIÓN | AM10: Etiquetas de fila | AN10: TOTAL PUNTO DE ATENCIÓN | AP10: Etiquetas de fila | AQ10: TOTAL PUNTO DE ATENCIÓN | AS10: Etiquetas de fila | AT10: TOTAL PUNTO DE ATENCIÓN | AV10: Etiquetas de fila | AW10: TOTAL PUNTO DE ATENCIÓN | AZ10: CANAL | BA10: Hombre | BB10: Mujer | BC10: Total general | BH10: 13 teusaquillo | BI10: 4 | BO10: Junta de Acción Comunal | BP10: 3 | BR10: 3 | BT10: 19 ciudad bolívar | BU10: 25 | BY10: Red social twiter | BZ10: 3 | CB10: Grupo comunitario | CC10: 1 | CD10: 4 | CE10: 50 | CF10: 55 | CL10: Junta Administradora Local | CM10: 7 | CN10: 1 | CO10: 1 | CP10: 9 | CU10: 18 rafael uribe uribe | CV10: 2 | DH10: Redes sociales | DI10: =+DI8 -> 9 | DK10: Red social twiter | DL10: 3 | DU10: 15 antonio nariño | DV10: 6 | DX10: 06 tunjuelito | DY10: 8
E11: LILIANA AGUILAR PUENTES | F11: 74 | P11: Empresa privada | Q11: 2277 | R11: 0.126247505 | W11: Consulta general | X11: 9940 | AD11: Cad calle 26 mod-152 | AE11: 835 | AG11: Bogotá te escucha | AH11: 3987 | AJ11: Chat | AK11: 772 | AM11: Conmutador | AN11: 1706 | AP11: Correo electronico | AQ11: 9673 | AS11: Red social facebook | AT11: 72 | AV11: Ventanilla de radicación | AW11: 946 | AZ11: Cad calle 26 mod-152 | BA11: 47 | BB11: 46 | BC11: 93 | BH11: 08 kennedy | BI11: 4 | BO11: Total general | BP11: 140 | BQ11: 165 | BR11: 305 | BT11: No registra | BU11: 25 | BY11: Total general | BZ11: 2212 | CB11: Junta Administradora Local | CC11: 7 | CD11: 1 | CE11: 2 | CF11: 10 | CL11: Junta de Acción Comunal | CM11: 15 | CN11: 11 | CO11: 5 | CP11: 31 | CU11: 06 tunjuelito | CV11: 3 | DK11: No registra | DL11: 3 | DU11: 14 los mártires | DV11: 6 | DX11: 17 la candelaria | DY11: 9
E12: AURA CRISTINA IZQUIERDO PACHECO | F12: 117 | P12: Entidades y Organismos Distritales | Q12: 6513 | R12: 0.3611111111 | W12: Total general | X12: 18036 | AD12: Total general | AE12: 835 | AG12: Total general | AH12: 3987 | AJ12: Total general | AK12: 772 | AM12: Total general | AN12: 1706 | AP12: Total general | AQ12: 9673 | AS12: Red social instagram | AT12: 3 | AV12: Total general | AW12: 946 | AZ12: Total general | BA12: 47 | BB12: 46 | BC12: 93 | BH12: 04 san cristóbal | BI12: 4 | BT12: 01 usaquén | BU12: 23 | BY12: dias hábiles | BZ12: 21 | CA12: =+BZ11/BZ12 -> 105.3333333 | CB12: Junta de Acción Comunal | CC12: 15 | CD12: 11 | CE12: 34 | CF12: 60 | CL12: Total general | CM12: 714 | CN12: 614 | CO12: 142 | CP12: 1470 | CU12: 12 barrios unidos | CV12: 3 | DK12: Total general | DL12: 9 | DU12: 12 barrios unidos | DV12: 7 | DX12: 12 barrios unidos | DY12: 10
E13: JANETH REDONDO ACOSTA | F13: 319 | P13: Ciudadanía | Q13: 7115 | R13: 0.3944888002 | AS13: Red social twiter | AT13: 42 | BH13: 01 usaquén | BI13: 5 | BT13: Fuera de Bogotá | BU13: 18 | BY13: TOTAL VIRTUAL | BZ13: =+BZ11 -> 2212 | CB13: Total general | CC13: 977 | CD13: 794 | CE13: 441 | CF13: 2212 | CU13: 07 bosa | CV13: 4 | DU13: 17 la candelaria | DV13: 8 | DX13: 13 teusaquillo | DY13: 18
E14: MARTHA LUCIA GÓMEZ GONZÁLEZ | F14: 444 | P14: Total general | Q14: 18036 | R14: 1 | AM14: =+AM16 -> Conmutador | AP14: =+AP16 -> Correo electronico | AS14: Redes sociales | AV14: =+AV16 -> Ventanilla de radicación | AZ14: PRESENCIAL | BA14: 93 | BH14: 18 rafael uribe uribe | BI14: 5 | BO14: Ciudadanía | BP14: 132 | BQ14: 157 | BR14: 289 | BT14: 07 bosa | BU14: 17 | CU14: 13 teusaquillo | CV14: 4 | DU14: 13 teusaquillo | DV14: 14 | DX14: 05 usme | DY14: 22
A15: Etiquetas de fila | B15: Cuenta de CANAL DE REGISTRO | E15: WILMAR FERNANDO GUALDRÓN ARDILA | F15: 497 | AM15: Etiquetas de fila | AN15: TOTAL PUNTO DE ATENCIÓN | AP15: Etiquetas de fila | AQ15: TOTAL PUNTO DE ATENCIÓN | AS15: Etiquetas de fila | AT15: TOTAL PUNTO DE ATENCIÓN | AV15: Etiquetas de fila | AW15: TOTAL PUNTO DE ATENCIÓN | AZ15: Total general | BA15: 93 | BH15: 07 bosa | BI15: 5 | BO15: Empresa privada | BQ15: 3 | BR15: 3 | BT15: 02 chapinero | BU15: 15 | CB15: Etiquetas de fila | CC15: Hombre | CD15: Mujer | CU15: 16 puente aranda | CV15: 5 | DU15: 05 usme | DV15: 20 | DX15: 04 san cristóbal | DY15: 25
A16: PRESENCIAL | B16: 835 | E16: ALBEIRO ESCOBAR OCAMPO | F16: 891 | AM16: Conmutador | AN16: 1706 | AP16: Correo electronico | AQ16: 9673 | AS16: Red social facebook | AT16: 72 | AV16: Ventanilla de radicación | AW16: 946 | AZ16: total presencial | BA16: =+BA14 -> 93 | BH16: 10 engativá | BI16: 6 | BO16: Entidades y Organismos Distritales | BP16: 5 | BQ16: 5 | BR16: 10 | BT16: 18 rafael uribe uribe | BU16: 13 | CB16: Anónimo | CD16: 1 | CU16: 04 san cristóbal | CV16: 5 | DU16: 04 san cristóbal | DV16: 20 | DX16: 07 bosa | DY16: 31
A17: Total general | B17: 835 | E17: ZULMA YAZMIN LÓPEZ VÁSQUEZ | F17: 2157 | AM17: Total general | AN17: 1706 | AP17: Total general | AQ17: 9673 | AS17: Red social instagram | AT17: 3 | AV17: Total general | AW17: 946 | AZ17: dias hábiles | BA17: 21 | BH17: 05 usme | BI17: 7 | BO17: Junta de Acción Comunal | BP17: 3 | BR17: 3 | BT17: 09 fontibón | BU17: 12 | CB17: Ciudadanía | CC17: 333 | CD17: 238 | CU17: 09 fontibón | CV17: 7 | DU17: 01 usaquén | DV17: 25 | DX17: 16 puente aranda | DY17: 32
E18: CLAUDIA PATRICIA QUINTERO CACERES | F18: 2313 | P18: grupo | Q18: valores | R18: porcentaje | S18: complemento | T18: base | U18: inferior | V18: superior | AS18: Red social twiter | AT18: 42 | BH18: No registra | BI18: 8 | BO18: Total general | BP18: 140 | BQ18: 165 | BR18: 305 | BT18: 16 puente aranda | BU18: 10 | CB18: Empresa privada | CC18: 62 | CD18: 101 | CU18: 19 ciudad bolívar | CV18: 7 | DU18: 02 chapinero | DV18: 27 | DX18: 09 fontibón | DY18: 36
A19: Etiquetas de fila | B19: Cuenta de CANAL DE REGISTRO | E19: CRISTHIAN CAMILO MONTAÑA HERNÁNDEZ | F19: 11053 | P19: =+P5 -> Servidores públicos (funcionarios y contratistas) | Q19: =+Q5 -> 14 | R19: =+R5 -> 0.0007762253271 | S19: =1-R19 -> 0.9992237747 | T19: 0.3 | U19: 0.1 | V19: 0.1 | AS19: Total general | AT19: 117 | BH19: 19 ciudad bolívar | BI19: 10 | BT19: 04 san cristóbal | BU19: 10 | CB19: Entidades y Organismos Distritales | CC19: 559 | CD19: 438 | CU19: 10 engativá | CV19: 8 | DU19: 16 puente aranda | DV19: 27 | DX19: 01 usaquén | DY19: 37
A20: TELEFÓNICO | B20: 1706 | E20: Total general | F20: 18036 | P20: Entidades y Organismos Nacionales | Q20: 64 | R20: 0.003548458638 | S20: =1-R20 -> 0.9964515414 | T20: 0.3 | U20: 0.1 | V20: 0.1 | BH20: 11 suba | BI20: 19 | BT20: 13 teusaquillo | BU20: 9 | CB20: Grupo comunitario | CC20: 1 | CD20: 4 | CU20: 03 santa fe | CV20: 8 | DU20: 07 bosa | DV20: 27 | DX20: 03 santa fe | DY20: 44
A21: Total general | B21: 1706 | P21: JAL | Q21: 108 | R21: 0.005988023952 | S21: 0.994011976 | T21: 0.3 | U21: 0.1 | V21: 0.1 | BH21: Total general | BI21: 93 | BT21: 05 usme | BU21: 8 | CB21: Junta Administradora Local | CC21: 7 | CD21: 1 | CU21: 01 usaquén | CV21: 12 | DU21: 09 fontibón | DV21: 28 | DX21: 19 ciudad bolívar | DY21: 48
P22: =+P8 -> Grupo comunitario | Q22: =+Q8 -> 232 | R22: 0.01286316256 | S22: 0.9871368374 | T22: 0.3 | U22: 0.1 | V22: 0.1 | BT22: 03 santa fe | BU22: 8 | CU22: 08 kennedy | CV22: 15 | DU22: 03 santa fe | DV22: 36 | DX22: 02 chapinero | DY22: 49
A23: Etiquetas de fila | B23: Cuenta de CANAL DE REGISTRO | P23: JAC | Q23: 486 | R23: 0.02694610778 | S23: 0.9730538922 | T23: 0.3 | U23: 0.1 | V23: 0.1 | BT23: 12 barrios unidos | BU23: 6 | CU23: 11 suba | CV23: 19 | DU23: 08 kennedy | DV23: 40 | DX23: 08 kennedy | DY23: 55
A24: VIRTUAL | B24: 15495 | P24: Anónimo | Q24: 1227 | R24: 0.06803060546 | S24: 0.9319693945 | T24: 0.3 | U24: 0.1 | V24: 0.1 | BT24: 17 la candelaria | BU24: 5 | CU24: 02 chapinero | CV24: 22 | DU24: 19 ciudad bolívar | DV24: 41 | DX24: 18 rafael uribe uribe | DY24: 56
A25: Total general | B25: 15495 | P25: Empresa privada | Q25: 2277 | R25: 0.126247505 | S25: 0.873752495 | T25: 0.3 | U25: 0.1 | V25: 0.1 | BT25: 06 tunjuelito | BU25: 5 | CU25: No registra | CV25: 409 | DU25: 18 rafael uribe uribe | DV25: 54 | DX25: 10 engativá | DY25: 71
P26: Entidades y Organismos Distritales | Q26: 6513 | R26: 0.3611111111 | S26: 0.6388888889 | T26: 0.3 | U26: 0.1 | V26: 0.1 | BT26: 14 los mártires | BU26: 2 | CU26: Total general | CV26: 537 | DO26: CANAL DE REGISTRO | DP26: VIRTUAL | DU26: 10 engativá | DV26: 63 | DX26: 11 suba | DY26: 185
N27: 20 | O27: 20 | P27: Ciudadanía | Q27: 7115 | V27: 0.1 | BA27: =+BA12/$BC$12 -> 0.5053763441 | BB27: =+BB12/$BC$12 -> 0.4946236559 | BT27: 15 antonio nariño | BU27: 1 | DO27: MES | DP27: AGOSTO | DU27: 11 suba | DV27: 165 | DX27: No registra | DY27: 1457
L28: =+M1 -> (Todas) | BT28: Total general | BU28: 305 | DU28: No registra | DV28: 845 | DX28: Total general | DY28: 2212
L29: genero | M29: porc | N29: base | O29: transp | DO29: Cuenta de PUNTO DE ATENCIÓN | DP29: Etiquetas de columna | DU29: Total general | DV29: 1470
L30: =+L5 -> Hombre | M30: =+GETPIVOTDATA("Cuenta de SEXO2",$L$3,"SEXO","Hombre") -> 0.4425038811 | N30: 0.25 | O30: =1-M30 -> 0.5574961189 | DO30: Etiquetas de fila | DP30: Hombre | DQ30: Mujer | DR30: N/A | DS30: Total general
L31: =+L6 -> Mujer | M31: =+GETPIVOTDATA("Cuenta de SEXO2",$L$3,"SEXO","Mujer") -> 0.3890552229 | N31: 0.25 | O31: =1-M31 -> 0.6109447771 | DO31: Ventanilla de radicación | DP31: 54 | DQ31: 24 | DR31: 61 | DS31: 139
L32: =+L7 -> N/A | M32: =+GETPIVOTDATA("Cuenta de SEXO2",$L$3,"SEXO","N/A") -> 0.168440896 | N32: 0.25 | O32: =1-M32 -> 0.831559104 | DO32: Anónimo | DR32: 5 | DS32: 5
L33: =+L8 -> Total general | M33: =GETPIVOTDATA("Cuenta de SEXO",$L$4) -> 18036 | DO33: Ciudadanía | DP33: 54 | DQ33: 24 | DS33: 78
DO34: Empresa privada | DR34: 28 | DS34: 28
DO35: Grupo comunitario | DR35: 14 | DS35: 14
DO36: Junta de Acción Comunal | DR36: 14 | DS36: 14
DO37: Total general | DP37: 54 | DQ37: 24 | DR37: 61 | DS37: 139
N38: c

Sheet distribucion puntos AC
K17: Horarios de atención:
K19: Lunes a viernes de 7:00 a 4:30
K22: Lunes a viernes de 7:00 a 4:30
K30: Lunes a viernes de 7:00 a 4:30
K33: Lunes a viernes de 7:00 a 4:30
K36: Lunes a viernes de 7:00 a 4:30
K38: Lunes a viernes de 7:00 a12:00 y de 2:00 a 4:30
K41: Lunes a viernes de 7:00 a 4:30
K44: Lunes a viernes de 7:00 a 4:30

Sheet dias habiles (hidden)
A1: inicio de mes | B1: dias habiles | C1: dias habiles | D1: fin de mes | F1: Fecha
A2: 44197 | B2: =NETWORKDAYS(A2,0,F2:F19) -> -31569 | C2: =NETWORKDAYS(A2,D2,F2:F18) -> 19 | D2: 44227 | F2: 44197
A3: 44228 | B3: =NETWORKDAYS(A3,0,F19:F20) -> -31591 | C3: 20 | D3: =EOMONTH(A3,0) -> 44255 | F3: 44207
A4: 44256 | B4: =NETWORKDAYS(A4,0,F19:F21) -> -31611 | C4: 22 | D4: =EOMONTH(A4,0) -> 44286 | F4: 44277
A5: 44287 | B5: =NETWORKDAYS(A5,0,F19:F22) -> -31634 | C5: 20 | D5: 44316 | F5: 44287
A6: 44317 | B6: =NETWORKDAYS(A6,0,F19:F23) -> -31655 | C6: 20 | D6: 44347 | F6: 44288
A7: 44348 | B7: =NETWORKDAYS(A7,0,F19:F24) -> -31677 | C7: 20 | D7: 44377 | F7: 44317
A8: 44378 | B8: =NETWORKDAYS(A8,0,F19:F25) -> -31699 | C8: 20 | D8: 44408 | F8: 44333
A9: 44409 | B9: =NETWORKDAYS(A9,0,F19:F26) -> -31720 | C9: 21 | D9: 44439 | F9: 44354
A10: 44440 | B10: =NETWORKDAYS(A10,0,F19:F27) -> -31743 | C10: 22 | D10: 44469 | F10: 44361
A11: 44470 | B11: =NETWORKDAYS(A11,0,F19:F28) -> -31765 | C11: 20 | D11: 44500 | F11: 44382
A12: 44501 | B12: =NETWORKDAYS(A12,0,F19:F29) -> -31786 | C12: 20 | D12: 44530 | F12: 44397
A13: 44531 | B13: =NETWORKDAYS(A13,0,F19:F30) -> -31808 | C13: 22 | D13: 44561 | F13: 44424
A14: año 2021 | B14: =NETWORKDAYS(A14,0,F19:F31) ->  | C14: =SUM(C2:C13) -> 246 | F14: 44487
B15: =NETWORKDAYS(A15,0,F19:F32) -> 0 | F15: 44501
B16: =NETWORKDAYS(A16,0,F19:F33) -> 0 | F16: 44515
B17: =NETWORKDAYS(A17,0,F19:F34) -> 0 | F17: 44538
B18: =NETWORKDAYS(A18,0,F19:F35) -> 0 | F18: 44555
B19: =NETWORKDAYS(A19,0,F19:F36) -> 0

Sheet consolidado 2021 (hidden)
A1: ITEMS | B1: AÑO | C1: MES | D1: FECHA | E1: ATENDIDO POR | F1: CANAL DE REGISTRO | G1: PUNTO DE ATENCIÓN | H1: CORREO ELECTRÓNICO | I1: GRUPO DE VALOR | J1: SEXO | K1: GRADO DE VULNERABILIDAD | L1: ETNIA | M1: RANGO DE EDAD | N1: TIPO SOLICITUD | O1: TRAMITE/SERVICIO | P1: TEMA | Q1: ASUNTO | R1: EVENTO | S1: DESTINO | T1: LOCALIDAD
A2: 1 | B2: 2021 | C2: ENERO | D2: 44200 | E2: AURA CRISTINA IZQUIERDO PACHECO | F2: VIRTUAL | G2: Red social facebook | I2: Ciudadanía | J2: Mujer | N2: Asesoría | O2: Asesoría en administración y sostenibilidad del espacio público | P2: Cómo radicar en SDQS | Q2: Solicita información sobre cómo denunciar invasión de espacio público en su barrio. Se brinda información de Bogotá te Escucha. | R2: Cierre | S2: Ciudadano | T2: 07 bosa
A3: 2 | B3: 2021 | C3: ENERO | D3: 44202 | E3: AURA CRISTINA IZQUIERDO PACHECO | F3: VIRTUAL | G3: Red social facebook | I3: Ciudadanía | J3: Mujer | N3: Consulta | O3: Consulta general | P3: Información pública | Q3: Solicita información sobre apertura del Parque de Los Nvios. Se binda información. | R3: Cierre | S3: Ciudadano | T3: No registra
A4: 3 | B4: 2021 | C4: ENERO | D4: 44215 | E4: AURA CRISTINA IZQUIERDO PACHECO | F4: VIRTUAL | G4: Red social facebook | I4: Ciudadanía | J4: Hombre | N4: Consulta | O4: Asesoría en administración y sostenibilidad del espacio público | P4: Consulta radicado | Q4: Solicita información de petición ya radicada. Se remiten de nuevo los números de radicado, teléfono y correo al cual hacer el respectivo seguimiento. | R4: Cierre | S4: Atención al Ciudadano | T4: 11 suba
A5: 4 | B5: 2021 | C5: ENERO | D5: 44215 | E5: AURA CRISTINA IZQUIERDO PACHECO | F5: VIRTUAL | G5: Red social facebook | I5: Ciudadanía | J5: Mujer | N5: Consulta | O5: Consulta general | P5: Oferta de servicios | Q5: Solicita infomación para formar parte de Defensores del Espacio Público. Se remite información de Talento no Palanca, Sideap y correo SAI. | R5: Cierre | S5: Ciudadano | T5: No registra
A6: 5 | B6: 2021 | C6: ENERO | D6: 44215 | E6: AURA CRISTINA IZQUIERDO PACHECO | F6: VIRTUAL | G6: Red social facebook | I6: Ciudadanía | J6: Hombre | N6: Consulta | O6: Consulta general | P6: Oferta de servicios | Q6: Solicita infomación para formar parte de la entidad. Se remite información de Talento no Palanca, Sideap y correo SAI. | R6: Cierre | S6: Ciudadano | T6: No registra
A7: 6 | B7: 2021 | C7: ENERO | D7: 44225 | E7: AURA CRISTINA IZQUIERDO PACHECO | F7: VIRTUAL | G7: Red social facebook | I7: Ciudadanía | J7: Hombre | N7: Asesoría | O7: Asesoría en administración y sostenibilidad del espacio público | P7: Solicitud permiso para intervención de zonas | Q7: Solicita información para autorización de uso de bahía. Se ermite correo de Atención a la Ciudadanía para presentar solicitud directamente al área. | R7: Asignar | S7: Atención al Ciudadano | T7: No registra
A8: 7 | B8: 2021 | C8: ENERO | D8: 44200 | E8: AURA CRISTINA IZQUIERDO PACHECO | F8: VIRTUAL | G8: Red social twiter | I8: Ciudadanía | J8: Hombre | N8: Asesoría | O8: Asesoría en administración y sostenibilidad del espacio público | P8: Asesoría en administración y sostenibilidad del espacio público | Q8: Solicita información sobre cómo denunciar invasión de espacio público por cambuches. Se brinda información de Bogotá te Escucha. | R8: Cierre | S8: Ciudadano | T8: No registra
A9: 8 | B9: 2021 | C9: ENERO | D9: 44204 | E9: AURA CRISTINA IZQUIERDO PACHECO | F9: VIRTUAL | G9: Red social twiter | I9: Ciudadanía | J9: Hombre | N9: Consulta | O9: Asesoría en administración y sostenibilidad del espacio público | P9: Asesoría en administración y sostenibilidad del espacio público | Q9: Solicita información sobre posible irregularidad en construcción de parque en zona verde en Usme. Se solicita más información. | R9: Asignar | S9: SAI | T9: 05 usme
A10: 9 | B10: 2021 | C10: ENERO | D10: 2021-01-09 | E10: AURA CRISTINA IZQUIERDO PACHECO | F10: VIRTUAL | G10: Red social twiter | I10: Ciudadanía | J10: Hombre | N10: Consulta | O10: Asesoría en administración y sostenibilidad del espacio público | P10: Asesoría en administración y sostenibilidad del espacio público | Q10: Solicita información para solicitar recuperación de espacio público en sector de Nueva Castilla, Tintal. Se remite información de Bogotá te Escucha. | R10: Cierre | S10: Ciudadano | T10: 08 kennedy
A11: 10 | B11: 2021 | C11: ENERO | D11: 44217 | E11: AURA CRISTINA IZQUIERDO PACHECO | F11: VIRTUAL | G11: Red social twiter | I11: Ciudadanía | J11: Hombre | N11: Derecho de petición de interés general | O11: Asesoría en administración y sostenibilidad del espacio público | P11: Denuncia otros elementos | Q11: Denuncia internveción de anden en calle 126 con 9. Se radica y traslada a Secretaría de Gobierno, Planeación e IDU por ser de su competencia. | R11: Trasladar | S11: Otras entidades | T11: 01 usaquén
A12: 11 | B12: 2021 | C12: ENERO | D12: 44225 | E12: AURA CRISTINA IZQUIERDO PACHECO | F12: VIRTUAL | G12: Red social twiter | I12: Ciudadanía | J12: Hombre | N12: Asesoría | O12: Asesoría en administración y sostenibilidad del espacio público | P12: Parqueaderos | Q12: Solicita información sobre legalidad de construcción de parqueadero frente a unas casas en Kennedy. Se solicita más información para poder radicar caso. | R12: Consultar | S12: Ciudadano | T12: 08 kennedy
A13: 12 | B13: 2021 | C13: ENERO | D13: 44200 | E13: MARTHA LUCIA GÓMEZ GONZÁLEZ | F13: VIRTUAL | G13: Ventanilla de radicación | I13: Ciudadanía | J13: Hombre | N13: Derecho de petición de interés particular | O13: Asesoría en administración y sostenibilidad del espacio público | P13: Asesoría en administración y sostenibilidad del espacio público | Q13: DERECHO DE PETICION INVASION DE ESPACIO PUBLICO | R13: Asignar | S13: SAI | T13: No registra
A14: 13 | B14: 2021 | C14: ENERO | D14: 44201 | E14: MARTHA LUCIA GÓMEZ GONZÁLEZ | F14: VIRTUAL | G14: Ventanilla de radicación | I14: Entidades y Organismos Distritales | J14: N/A | N14: Derecho de petición de interés general | O14: Certificación de la propiedad inmobiliaria distrital | P14: Certificación de la propiedad inmobiliaria distrital | Q14: SOLICITUD CERTIFICADOS DE BIEN DE USO PUBLICO -INDEVIDA OCUPACION DE ESPACIO PUBLICO | R14: Asignar | S14: SAI | T14: No registra
A15: 14 | B15: 2021 | C15: ENERO | D15: 44202 | E15: MARTHA LUCIA GÓMEZ GONZÁLEZ | F15: VIRTUAL | G15: Ventanilla de radicación | I15: Empresa privada | J15: N/A | N15: Derecho de petición de interés particular | O15: Certificación de la propiedad inmobiliaria distrital | P15: Certificación de la propiedad inmobiliaria distrital | Q15: SOLICITUD DE CERTIFICACION DE LOS SIGUENTES RUPIS 941-6,1181-2,3495-15,3495-17 Y 943-15 | R15: Asignar | S15: SRI | T15: No registra
A16: 15 | B16: 2021 | C16: ENERO | D16: 44203 | E16: MARTHA LUCIA GÓMEZ GONZÁLEZ | F16: VIRTUAL | G16: Ventanilla de radicación | I16: Ciudadanía | J16: Mujer | N16: Derecho de petición de interés particular | O16: Asesoría en administración y sostenibilidad del espacio público | P16: Asesoría en administración y sostenibilidad del espacio público | Q16: SOLICITUD MANTENIMIENTO LOTES | R16: Asignar | S16: SAI | T16: No registra
A17: 16 | B17: 2021 | C17: ENERO | D17: 2021-01-07 | E17: MARTHA LUCIA GÓMEZ GONZÁLEZ | F17: VIRTUAL | G17: Ventanilla de radicación | I17: Anónimo | J17: N/A | N17: Derecho de petición de interés particular | O17: Asesoría en administración y sostenibilidad del espacio público | P17: Asesoría en administración y sostenibilidad del espacio público | Q17: VEHICULOS MAL PARQUEADOS | R17: Asignar | S17: SAI | T17: No registra
A18: 17 | B18: 2021 | C18: ENERO | D18: 44203 | E18: MARTHA LUCIA GÓMEZ GONZÁLEZ | F18: VIRTUAL | G18: Ventanilla de radicación | I18: Ciudadanía | J18: Hombre | N18: Derecho de petición de interés particular | O18: Estudio de la viabilidad de las solicitudes de administración de bienes públicos | P18: Asesoria en contratos de administración | Q18: DERECHO DE PETICION SOLICITUD COPIA CONTRATO | R18: Asignar | S18: SAI | T18: No registra
A19: 18 | B19: 2021 | C19: ENERO | D19: 2021-01-08 | E19: MARTHA LUCIA GÓMEZ GONZÁLEZ | F19: VIRTUAL | G19: Ventanilla de radicación | I19: Ciudadanía | J19: Mujer | N19: Derecho de petición de interés particular | O19: Asesoría en administración y sostenibilidad del espacio público | P19: Asesoría en administración y sostenibilidad del espacio público | Q19: DERECHO DE PETICION INVASIONDE ESPACIO PUBLICO | R19: Asignar | S19: SAI | T19: No registra
A20: 19 | B20: 2021 | C20: ENERO | D20: 2021-01-08 | E20: MARTHA LUCIA GÓMEZ GONZÁLEZ | F20: VIRTUAL | G20: Ventanilla de radicación | I20: Empresa privada | J20: Mujer | N20: Derecho de petición de interés general | O20: Asesoría en administración y sostenibilidad del espacio público | P20: Asesoría en administración y sostenibilidad del espacio público | Q20: SOLICITUD RECOLECCION DE ESCOMBROS | R20: Asignar | S20: SAI | T20: No registra
A21: 20 | B21: 2021 | C21: ENERO | D21: 2021-01-07 | E21: MARTHA LUCIA GÓMEZ GONZÁLEZ | F21: VIRTUAL | G21: Ventanilla de radicación | I21: Grupo comunitario | J21: N/A | N21: Derecho de petición de interés general | O21: Estudio de la viabilidad de las solicitudes de administración de bienes públicos | P21: Asesoria en contratos de administración | Q21: SOLICITUD SUSCRIPCION CONTRATO O CONVENIO SOLIDARIO ZONAS D ESTACIONAMIENTO | R21: Asignar | S21: SAI DESPACHO | T21: No registra
A22: 21 | B22: 2021 | C22: ENERO | D22: 2021-01-04 | E22: MARTHA LUCIA GÓMEZ GONZÁLEZ | F22: VIRTUAL | G22: Ventanilla de radicación | I22: Ciudadanía | J22: Hombre | N22: Derecho de petición de interés particular | O22: Asesoría en administración y sostenibilidad del espacio público | P22: Asesoría en administración y sostenibilidad del espacio público | Q22: denuncia al auto lavado los heroes calle 76 16 A 33 | R22: Asignar | S22: SAI DESPACHO | T22: No registra
A23: 22 | B23: 2021 | C23: ENERO | D23: 2021-01-04 | E23: MARTHA LUCIA GÓMEZ GONZÁLEZ | F23: VIRTUAL | G23: Ventanilla de radicación | I23: Empresa privada | J23: N/A | N23: Derecho de petición de interés general | O23: Certificación de la propiedad inmobiliaria distrital | P23: Certificación de la propiedad inmobiliaria distrital | Q23: CARACTERIZACI??N GEOL??GICA GEOT??CNICA EN SECTORES PRIORITARIOS DE LAS LOCALIDADES CHAPINERO Y USME PARA LA EVALUACI??N DE AMENAZA Y RIESGO POR MOVIMIENTOS EN MASA. | R23: Asignar | S23: SAI DESPACHO | T23: No registra
A24: 23 | B24: 2021 | C24: ENERO | D24: 2021-01-04 | E24: MARTHA LUCIA GÓMEZ GONZÁLEZ | F24: VIRTUAL | G24: Ventanilla de radicación | I24: Empresa privada | J24: N/A | N24: Derecho de petición de interés general | O24: Certificación de la propiedad inmobiliaria distrital | P24: Certificación de la propiedad inmobiliaria distrital | Q24: CARACTERIZACI??N GEOL??GICA GEOT??CNICA EN SECTORES PRIORITARIOS DE LAS LOCALIDADES CHAPINERO Y USME PARA LA EVALUACI??N DE AMENAZA Y RIESGO POR MOVIMIENTOS EN MASA | R24: Asignar | S24: SAI DESPACHO | T24: No registra
A25: 24 | B25: 2021 | C25: ENERO | D25: 2021-01-04 | E25: MARTHA LUCIA GÓMEZ GONZÁLEZ | F25: VIRTUAL | G25: Ventanilla de radicación | I25: Empresa privada | J25: N/A | N25: Derecho de petición de interés general | O25: Certificación de la propiedad inmobiliaria distrital | P25: Certificación de la propiedad inmobiliaria distrital | Q25: CARACTERIZACI??N GEOL??GICA GEOT??CNICA EN SECTORES PRIORITARIOS DE LAS LOCALIDADES CHAPINERO Y USME PARA LA EVALUACI??N DE AMENAZA Y RIESGO POR MOVIMIENTOS EN MASA. | R25: Asignar | S25: SAI DESPACHO | T25: No registra
A26: 25 | B26: 2021 | C26: ENERO | D26: 2021-01-04 | E26: MARTHA LUCIA GÓMEZ GONZÁLEZ | F26: VIRTUAL | G26: Ventanilla de radicación | I26: Empresa privada | J26: N/A | N26: Derecho de petición de interés general | O26: Certificación de la propiedad inmobiliaria distrital | P26: Certificación de la propiedad inmobiliaria distrital | Q26: CARACTERIZACI??N GEOL??GICA GEOT??CNICA EN SECTORES PRIORITARIOS DE LAS LOCALIDADES CHAPINERO Y USME PARA LA EVALUACI??N DE AMENAZA Y RIESGO POR MOVIMIENTOS EN MASA. | R26: Asignar | S26: SAI DESPACHO | T26: No registra
A27: 26 | B27: 2021 | C27: ENERO | D27: 2021-01-04 | E27: MARTHA LUCIA GÓMEZ GONZÁLEZ | F27: VIRTUAL | G27: Ventanilla de radicación | I27: Ciudadanía | J27: Hombre | N27: Derecho de petición de interés particular | O27: Asesoría en administración y sostenibilidad del espacio público | P27: Asesoría en administración y sostenibilidad del espacio público | Q27: QUEJA POR INDEVIDO USO DEL ESPACIO PUBLICO | R27: Asignar | S27: SAI DESPACHO | T27: No registra
A28: 27 | B28: 2021 | C28: ENERO | D28: 2021-01-05 | E28: MARTHA LUCIA GÓMEZ GONZÁLEZ | F28: VIRTUAL | G28: Ventanilla de radicación | I28: Ciudadanía | J28: Mujer | N28: Derecho de petición de interés particular | O28: Asesoría en administración y sostenibilidad del espacio público | P28: Asesoría en administración y sostenibilidad del espacio público | Q28: DENUNCIA INVASION ESPACIO PUBLICO LOCALIDAD DE KENNEDY BARRIO DINDALITO | R28: Asignar | S28: SAI DESPACHO | T28: No registra
A29: 28 | B29: 2021 | C29: ENERO | D29: 2021-01-05 | E29: MARTHA LUCIA GÓMEZ GONZÁLEZ | F29: VIRTUAL | G29: Ventanilla de radicación | I29: Grupo comunitario | J29: N/A | N29: Derecho de petición de interés general | O29: Asesoría en administración y sostenibilidad del espacio público | P29: Asesoría en administración y sostenibilidad del espacio público | Q29: INAVASION ESPACIO PUBLICO MANDALAY CALLE 2 | R29: Asignar | S29: SAI DESPACHO | T29: No registra
A30: 29 | B30: 2021 | C30: ENERO | D30: 2021-01-06 | E30: MARTHA LUCIA GÓMEZ GONZÁLEZ | F30: VIRTUAL | G30: Ventanilla de radicación | I30: Empresa privada | J30: N/A | N30: Derecho de petición de interés general | O30: Estudio de la viabilidad de las solicitudes de administración de bienes públicos | P30: Asesoria en contratos de administración | Q30: SOLICITUD PERMISO ESTACIONAR UIDAD MOVIL PARQUE CIUDAD SALITRE | R30: Asignar | S30: SAI DESPACHO | T30: No registra
A31: 30 | B31: 2021 | C31: ENERO | D31: 2021-01-04 | E31: MARTHA LUCIA GÓMEZ GONZÁLEZ | F31: VIRTUAL | G31: Ventanilla de radicación | I31: Empresa privada | J31: N/A | N31: Derecho de petición de interés general | O31: Estudio de la viabilidad de las solicitudes de administración de bienes públicos | P31: Asesoria en contratos de administración | Q31: SOLICITUD DE CESION DE ESPACIO PUBLICO DE FORMA TEMPORAL PARA USO DE ZONAS DE COMERCIO A ESPACIO ABIERTO | R31: Asignar | S31: SRI DESPACHO | T31: No registra
A32: 31 | B32: 2021 | C32: ENERO | D32: 2021-01-04 | E32: MARTHA LUCIA GÓMEZ GONZÁLEZ | F32: VIRTUAL | G32: Ventanilla de radicación | I32: Empresa privada | J32: N/A | N32: Derecho de petición de interés particular | O32: Certificación de la propiedad inmobiliaria distrital | P32: Certificación de la propiedad inmobiliaria distrital | Q32: WSP-1676-2020 Concesionario Metro L??nea 1 - Contrato de Concesi??n No. 163 de 2019 ???Estudios y Dise??os de Detalle, ejecuci??n de las Obras de Construcci??n de la Primera L??nea de Metro de Bogot?????. Asunto: Solicitud de Base de Datos del Sistema de Informaci??n del Espacio P??blico en el ??rea de influencia del proyecto Primera L??nea de M | R32: Asignar | S32: SRI DESPACHO | T32: No registra
A33: 32 | B33: 2021 | C33: ENERO | D33: 2021-01-05 | E33: MARTHA LUCIA GÓMEZ GONZÁLEZ | F33: VIRTUAL | G33: Ventanilla de radicación | I33: Ciudadanía | J33: Mujer | N33: Solicitud de acceso a la información | O33: Incorporación y entrega de las áreas de cesión a favor del municipio | P33: Cabida y linderos | Q33: SOLICITUD ENTREGA BIEN SOLICITUD A OFICIO ENVIADO ADEP 20202010091171 | R33: Asignar | S33: SRI DESPACHO | T33: No registra
A34: 33 | B34: 2021 | C34: ENERO | D34: 2021-01-06 | E34: MARTHA LUCIA GÓMEZ GONZÁLEZ | F34: VIRTUAL | G34: Ventanilla de radicación | I34: Ciudadanía | J34: Hombre | N34: Derecho de petición de interés particular | O34: Consulta general | P34: Consulta general | Q34: RECURSO DE REPOSICION Y EN SUBSIDIO APELACION. Referencia: Radicaci??n N. 2020-101245 ??? Nr.: 2020EE45840 O 1 Folio 1 Anex:2 | R34: Asignar | S34: SRI DESPACHO | T34: No registra
A35: 34 | B35: 2021 | C35: ENERO | D35: 2021-01-06 | E35: MARTHA LUCIA GÓMEZ GONZÁLEZ | F35: VIRTUAL | G35: Ventanilla de radicación | I35: Grupo comunitario | J35: N/A | N35: SOLICITUD DE COPIA | O35: Certificación de la propiedad inmobiliaria distrital | P35: Certificación de la propiedad inmobiliaria distrital | Q35: CONSULTA PREDIO DADEPRUPI 1851-48 | R35: Asignar | S35: SRI DESPACHO | T35: No registra
A36: 35 | B36: 2021 | C36: ENERO | D36: 2021-01-12 | E36: MARTHA LUCIA GÓMEZ GONZÁLEZ | F36: VIRTUAL | G36: Ventanilla de radicación | I36: Ciudadanía | J36: Mujer | N36: Derecho de petición de interés particular | O36: Estudio de la viabilidad de las solicitudes de administración de bienes públicos | P36: Asesoria en contratos de administración | Q36: PERMISO PARA TRAMITE | R36: Asignar | S36: SAI | T36: No registra
A37: 36 | B37: 2021 | C37: ENERO | D37: 2021-01-12 | E37: MARTHA LUCIA GÓMEZ GONZÁLEZ | F37: VIRTUAL | G37: Ventanilla de radicación | I37: Entidades y Organismos Distritales | J37: N/A | N37: Derecho de petición de interés particular | O37: Asesoría en administración y sostenibilidad del espacio público | P37: Asesoría en administración y sostenibilidad del espacio público | Q37: Traslado solicitud certificación | R37: Asignar | S37: SRI | T37: No registra
A38: 37 | B38: 2021 | C38: ENERO | D38: 2021-01-12 | E38: MARTHA LUCIA GÓMEZ GONZÁLEZ | F38: VIRTUAL | G38: Ventanilla de radicación | I38: Ciudadanía | J38: Mujer | N38: Derecho de petición de interés particular | O38: Asesoría en administración y sostenibilidad del espacio público | P38: Asesoría en administración y sostenibilidad del espacio público | Q38: INVASION DE ESPACIO PUBLIO | R38: Asignar | S38: SAI | T38: No registra
A39: 38 | B39: 2021 | C39: ENERO | D39: 2021-01-12 | E39: MARTHA LUCIA GÓMEZ GONZÁLEZ | F39: VIRTUAL | G39: Ventanilla de radicación | I39: Entidades y Organismos Distritales | J39: N/A | N39: Derecho de petición de interés particular | O39: Estudio de la viabilidad de las solicitudes de administración de bienes públicos | P39: Asesoria en contratos de administración | Q39: TRASLADOPERMISO PARA UTILIZACION DE ESPACIO PUBLICO | R39: Asignar | S39: SAI | T39: No registra
A40: 39 | B40: 2021 | C40: ENERO | D40: 2021-01-12 | E40: MARTHA LUCIA GÓMEZ GONZÁLEZ | F40: VIRTUAL | G40: Ventanilla de radicación | I40: Ciudadanía | J40: Hombre | N40: Derecho de petición de interés particular | O40: Certificación de la propiedad inmobiliaria distrital | P40: Certificación de la propiedad inmobiliaria distrital | Q40: DERECHO DE PETICION SOLICITUD SI PREDIO SE ENCUENTRA INVENTARIO DE ZONAS DE CESION | R40: Asignar | S40: SRI | T40: No registra
A41: 40 | B41: 2021 | C41: ENERO | D41: 2021-01-12 | E41: MARTHA LUCIA GÓMEZ GONZÁLEZ | F41: VIRTUAL | G41: Ventanilla de radicación | I41: Entidades y Organismos Distritales | J41: N/A | N41: Derecho de petición de interés particular | O41: Asesoría en administración y sostenibilidad del espacio público | P41: Asesoría en administración y sostenibilidad del espacio público | Q41: TRASLADODERECHO DE PETICION INVASION DE ESPACIO PUBLICO BAHIA UTILIZADAS COMO PARQUEADERO | R41: Asignar | S41: SAI | T41: No registra
A42: 41 | B42: 2021 | C42: ENERO | D42: 2021-01-12 | E42: MARTHA LUCIA GÓMEZ GONZÁLEZ | F42: VIRTUAL | G42: Ventanilla de radicación | I42: Ciudadanía | J42: Mujer | N42: Derecho de petición de interés particular | O42: Certificación de la propiedad inmobiliaria distrital | P42: Certificación de la propiedad inmobiliaria distrital | Q42: DERECHO DE PETICION SOLICITUD CERTIFICACION RUPI | R42: Asignar | S42: SRI | T42: No registra
A43: 42 | B43: 2021 | C43: ENERO | D43: 2021-01-12 | E43: MARTHA LUCIA GÓMEZ GONZÁLEZ | F43: VIRTUAL | G43: Ventanilla de radicación | I43: Ciudadanía | J43: Mujer | N43: Derecho de petición de interés particular | O43: Estudio de la viabilidad de las solicitudes de administración de bienes públicos | P43: Asesoria en contratos de administración | Q43: DERECHO DE PETICION SOLICITUD DE REQUISITOS PARA MONTAR UN REMOLQUE DE COMIDAS | R43: Asignar | S43: SAI | T43: No registra
A44: 43 | B44: 2021 | C44: ENERO | D44: 44204 | E44: MARTHA LUCIA GÓMEZ GONZÁLEZ | F44: VIRTUAL | G44: Ventanilla de radicación | I44: Anónimo | J44: N/A | N44: Derecho de petición de interés particular | O44: Asesoría en administración y sostenibilidad del espacio público | P44: Asesoría en administración y sostenibilidad del espacio público | Q44: RESPUESTA AL RADICADO 20213010000391 SE AGRADECE LA RESPUESTA Y SE ESPERAN QUE LOS TRASLADOS REALIZADOS HAGAN EFECTO EN LAS ENTIDADES QUE TIENEN QUE ACTUAR | R44: Asignar | S44: SAI DESPACHO | T44: No registra
A45: 44 | B45: 2021 | C45: ENERO | D45: 44204 | E45: MARTHA LUCIA GÓMEZ GONZÁLEZ | F45: VIRTUAL | G45: Ventanilla de radicación | I45: Ciudadanía | J45: Mujer | N45: Derecho de petición de interés particular | O45: Consulta general | P45: Consulta general | Q45: DERECHO DE PETICI??N SCOTIABANK COLPATRIA S.A. SUPERINTENDENCIA FINANCIERA DE COLOMBIA Y SUPERINTENDENCIA DE INDUSTRIA Y COMERCIO, en el presente encontrar??n adjunto Un(01) archivo en PDF con Nueve(09) folios escaneados, para el asunto en menci??n, de antemano agradezco su gesti??n y quedo en espera una soluci??n eficaz, una soluci??n de fondo y | R45: Asignar | S45: SAI DESPACHO | T45: No registra
A46: 45 | B46: 2021 | C46: ENERO | D46: 44204 | E46: MARTHA LUCIA GÓMEZ GONZÁLEZ | F46: VIRTUAL | G46: Ventanilla de radicación | I46: Empresa privada | J46: N/A | N46: Derecho de petición de interés general | O46: Asesoría en administración y sostenibilidad del espacio público | P46: Asesoría en administración y sostenibilidad del espacio público | Q46: CONVOCATORIA REUNI??N D??A 12 DE ENERO DE 2021 REVISI??N CASO SOCIAL FAMILIA QUE HABITA EN BODEGA DEBAJO DEL PUENTE CALLE 26 CON AV. 68 | R46: Asignar | S46: SAI DESPACHO | T46: No registra
A47: 46 | B47: 2021 | C47: ENERO | D47: 44209 | E47: MARTHA LUCIA GÓMEZ GONZÁLEZ | F47: VIRTUAL | G47: Ventanilla de radicación | I47: Ciudadanía | J47: Mujer | N47: Derecho de petición de interés particular | O47: Estudio de la viabilidad de las solicitudes de administración de bienes públicos | P47: Asesoria en contratos de administración | Q47: TRASLADO DERECHO DE PETICION SOLICITUD DE PERMISO USO DE ESPACIO PUBLICO | R47: Asignar | S47: SAI | T47: No registra
A48: 47 | B48: 2021 | C48: ENERO | D48: 44209 | E48: MARTHA LUCIA GÓMEZ GONZÁLEZ | F48: VIRTUAL | G48: Ventanilla de radicación | I48: Ciudadanía | J48: Hombre | N48: Derecho de petición de interés particular | O48: Consulta general | P48: Consulta general | Q48: DERECHO DE PETICION SOLICITUD DE CERTIFICACIONES | R48: Asignar | S48: OAJ | T48: No registra
A49: 48 | B49: 2021 | C49: ENERO | D49: 44209 | E49: MARTHA LUCIA GÓMEZ GONZÁLEZ | F49: VIRTUAL | G49: Ventanilla de radicación | I49: Entidades y Organismos Distritales | J49: Hombre | N49: Derecho de petición de interés particular | O49: Asesoría en administración y sostenibilidad del espacio público | P49: Asesoría en administración y sostenibilidad del espacio público | Q49: TRASLADO DERECHO DE PETICION SOLICITUD CORTE DE CESPED BOTADERO DE ESCOMBORS | R49: Asignar | S49: SAI | T49: No registra
A50: 49 | B50: 2021 | C50: ENERO | D50: 44210 | E50: MARTHA LUCIA GÓMEZ GONZÁLEZ | F50: VIRTUAL | G50: Ventanilla de radicación | I50: Ciudadanía | J50: Hombre | N50: Derecho de petición de interés particular | O50: Asesoría en administración y sostenibilidad del espacio público | P50: Asesoría en administración y sostenibilidad del espacio público | Q50: DERECHO DE PETICION SOLICITUD RECUPERACION DE ESPACIO PUBLICO | R50: Asignar | S50: SAI | T50: No registra
A51: 50 | B51: 2021 | C51: ENERO | D51: 44210 | E51: MARTHA LUCIA GÓMEZ GONZÁLEZ | F51: VIRTUAL | G51: Ventanilla de radicación | I51: Ciudadanía | J51: Mujer | N51: Derecho de petición de interés particular | O51: Estudio de la viabilidad de las solicitudes de administración de bienes públicos | P51: Asesoria en contratos de administración | Q51: SOLICITUD INFORMACION SOBRE PROCESOS DE LCITACION PARQUEAEROS | R51: Asignar | S51: SAI | T51: No registra
A52: 51 | B52: 2021 | C52: ENERO | D52: 44210 | E52: MARTHA LUCIA GÓMEZ GONZÁLEZ | F52: VIRTUAL | G52: Ventanilla de radicación | I52: Ciudadanía | J52: Hombre | N52: Derecho de petición de interés general | O52: Consulta general | P52: Consulta general | Q52: SOLICITUD DE CERTIFICACION CONTRATOS DE PRESCION DE SERVICIOS | R52: Asignar | S52: SAF | T52: No registra
A53: 52 | B53: 2021 | C53: ENERO | D53: 44210 | E53: MARTHA LUCIA GÓMEZ GONZÁLEZ | F53: VIRTUAL | G53: Ventanilla de radicación | I53: Entidades y Organismos Distritales | J53: N/A | N53: Derecho de petición de interés particular | O53: Asesoría en administración y sostenibilidad del espacio público | P53: Asesoría en administración y sostenibilidad del espacio público | Q53: TRASLADO-INTERVENCION DE UNA VIA PEATONAL DE INGRESO | R53: Asignar | S53: SAI | T53: No registra
A54: 53 | B54: 2021 | C54: ENERO | D54: 44208 | E54: MARTHA LUCIA GÓMEZ GONZÁLEZ | F54: VIRTUAL | G54: Ventanilla de radicación | I54: Ciudadanía | J54: Hombre | N54: Derecho de petición de interés particular | O54: Estudio de la viabilidad de las solicitudes de administración de bienes públicos | P54: Asesoria en contratos de administración | Q54: Derecho de Petici??n Solicito copia del concepto, resoluci??n, acta o documentos donde DADEP, autorice al se??or Ricardo Pinilla, presidente de la junta de acci??n comunal | R54: Asignar | S54: SAI DESPACHO | T54: No registra
A55: 54 | B55: 2021 | C55: ENERO | D55: 44208 | E55: MARTHA LUCIA GÓMEZ GONZÁLEZ | F55: VIRTUAL | G55: Ventanilla de radicación | I55: Ciudadanía | J55: Mujer | N55: Derecho de petición de interés particular | O55: Asesoría en administración y sostenibilidad del espacio público | P55: Asesoría en administración y sostenibilidad del espacio público | Q55: El DADEP emiti?? las sanciones y ordeno devolver el terreno invadi??, estoy solicitando copia de este proceso, ya que el administrador y miembros del consejo SE NIEGAN A ENTREGARLO. | R55: Asignar | S55: SAI DESPACHO | T55: No registra
A56: 55 | B56: 2021 | C56: ENERO | D56: 44208 | E56: MARTHA LUCIA GÓMEZ GONZÁLEZ | F56: VIRTUAL | G56: Ventanilla de radicación | I56: Empresa privada | J56: N/A | N56: Derecho de petición de interés general | O56: Asesoría en administración y sostenibilidad del espacio público | P56: Asesoría en administración y sostenibilidad del espacio público | Q56: SOLICITUD DE INFORMACION SECUNDARIA CONTRATO DE CONSULTOR??A IDU-1601-2020: ???ESTUDIOS Y DISE??OS DE LA CALZADA NORTE DE LA AVENIDA LA SIRENA (CALLE 153) ENTRE LA AUTOPISTA NORTE Y LA AVENIDA BOYAC?? EN LA CIUDAD DE BOGOT??, D.C.??? | R56: Asignar | S56: SAI DESPACHO | T56: No registra
A57: 56 | B57: 2021 | C57: ENERO | D57: 44208 | E57: MARTHA LUCIA GÓMEZ GONZÁLEZ | F57: VIRTUAL | G57: Ventanilla de radicación | I57: Ciudadanía | J57: Hombre | N57: Derecho de petición de interés particular | O57: Asesoría en administración y sostenibilidad del espacio público | P57: Asesoría en administración y sostenibilidad del espacio público | Q57: QUEJA POR RUIDO EN ESPACIO PUBLICO | R57: Asignar | S57: SAI DESPACHO | T57: No registra
A58: 57 | B58: 2021 | C58: ENERO | D58: 44209 | E58: MARTHA LUCIA GÓMEZ GONZÁLEZ | F58: VIRTUAL | G58: Ventanilla de radicación | I58: Ciudadanía | J58: Hombre | N58: Derecho de petición de interés particular | O58: Estudio de la viabilidad de las solicitudes de administración de bienes públicos | P58: Asesoria en contratos de administración | Q58: Conjunto Las Casas de San Jorge ll localizado en la Calle 127 # 87a - 24. Este correo es para pedirle autorizaci??n para poner en funcionamiento un FOOD TR??ILER de Comidas R??pidas en espacio p??blico en el cual se va a vender Hamburguesas, Salchipapas, Sandwichs, Pl??tanos Maduros, Chicharrones con papa criolla, caf??, arom??ticas y gaseosa. E | R58: Asignar | S58: SAI DESPACHO | T58: No registra
A59: 58 | B59: 2021 | C59: ENERO | D59: 44209 | E59: MARTHA LUCIA GÓMEZ GONZÁLEZ | F59: VIRTUAL | G59: Ventanilla de radicación | I59: Ciudadanía | J59: Mujer | N59: Derecho de petición de interés particular | O59: Asesoría en administración y sostenibilidad del espacio público | P59: Asesoría en administración y sostenibilidad del espacio público | Q59: REITERACION-RADICADO DADEP 20204000131522 | R59: Asignar | S59: SAI DESPACHO | T59: No registra
A60: 59 | B60: 2021 | C60: ENERO | D60: 44209 | E60: MARTHA LUCIA GÓMEZ GONZÁLEZ | F60: VIRTUAL | G60: Ventanilla de radicación | I60: Ciudadanía | J60: Hombre | N60: Derecho de petición de interés particular | O60: Asesoría en administración y sostenibilidad del espacio público | P60: Asesoría en administración y sostenibilidad del espacio público | Q60: 20212000000141 Traslado solicitud de inconformidad por contenedores en la localidad de Suba. Referencia: Radicado DADEP 20203010134391 con Radicado UAESP 20207000473062 del 16/12/2020. ASUNTO: Su oficio No. 20202000200221 del 28-12-2020 Rad. DADEP No.20203010134271 del 07-12-2020 Problem | R60: Asignar | S60: SAI DESPACHO | T60: No registra
A61: 60 | B61: 2021 | C61: ENERO | D61: 44210 | E61: MARTHA LUCIA GÓMEZ GONZÁLEZ | F61: VIRTUAL | G61: Ventanilla de radicación | I61: Entidades y Organismos Distritales | J61: N/A | N61: Derecho de petición de interés general | O61: Consulta general | P61: Consulta general | Q61: INVITACION ENCUENTRO COMUNITARIO | R61: Asignar | S61: SAI | T61: No registra
A62: 61 | B62: 2021 | C62: ENERO | D62: 44210 | E62: MARTHA LUCIA GÓMEZ GONZÁLEZ | F62: VIRTUAL | G62: Ventanilla de radicación | I62: Entidades y Organismos Distritales | J62: N/A | N62: Derecho de petición de interés particular | O62: Asesoría en administración y sostenibilidad del espacio público | P62: Asesoría en administración y sostenibilidad del espacio público | Q62: TRASLADO DE SOLICITUD POR OBSTRUCCIONDE DE ESPACIO PUBLICO | R62: Asignar | S62: SAI | T62: No registra
A63: 62 | B63: 2021 | C63: ENERO | D63: 44210 | E63: MARTHA LUCIA GÓMEZ GONZÁLEZ | F63: VIRTUAL | G63: Ventanilla de radicación | I63: Empresa privada | J63: N/A | N63: Derecho de petición de interés particular | O63: Certificación de la propiedad inmobiliaria distrital | P63: Certificación de la propiedad inmobiliaria distrital | Q63: SOLICITUD PLANO DECRETO 305 DE 2015 | R63: Asignar | S63: SRI | T63: No registra
A64: 63 | B64: 2021 | C64: ENERO | D64: 44210 | E64: MARTHA LUCIA GÓMEZ GONZÁLEZ | F64: VIRTUAL | G64: Ventanilla de radicación | I64: Grupo comunitario | J64: N/A | N64: Derecho de petición de interés particular | O64: Estudio de la viabilidad de las solicitudes de administración de bienes públicos | P64: Asesoria en contratos de administración | Q64: SOLUCITU ADMINISTRACION DE AREAS ENTREGADAS | R64: Asignar | S64: SAI | T64: No registra
A65: 64 | B65: 2021 | C65: ENERO | D65: 44210 | E65: MARTHA LUCIA GÓMEZ GONZÁLEZ | F65: VIRTUAL | G65: Ventanilla de radicación | I65: Ciudadanía | J65: N/A | N65: Derecho de petición de interés particular | O65: Consulta general | P65: Consulta general | Q65: SOLICITUD CERTIFIACION CONTRATO DE PRESTACION DE SERVICIOS | R65: Asignar | S65: OAJ | T65: No registra
A66: 65 | B66: 2021 | C66: ENERO | D66: 44210 | E66: MARTHA LUCIA GÓMEZ GONZÁLEZ | F66: VIRTUAL | G66: Ventanilla de radicación | I66: Entidades y Organismos Nacionales | J66: N/A | N66: Derecho de petición de interés particular | O66: Asesoría en administración y sostenibilidad del espacio público | P66: Asesoría en administración y sostenibilidad del espacio público | Q66: TRASLADO HAN CONVERTIDO CALLE EN UN TERMINAL DE TRANSPORTE | R66: Asignar | S66: SAI | T66: No registra
A67: 66 | B67: 2021 | C67: ENERO | D67: 44211 | E67: MARTHA LUCIA GÓMEZ GONZÁLEZ | F67: VIRTUAL | G67: Ventanilla de radicación | I67: Grupo comunitario | J67: N/A | N67: Derecho de petición de interés general | O67: Estudio de la viabilidad de las solicitudes de administración de bienes públicos | P67: Asesoria en contratos de administración | Q67: CARTA DE INTENSION PRESENTACION DEMOS | R67: Asignar | S67: SAI | T67: No registra
A68: 67 | B68: 2021 | C68: ENERO | D68: 44211 | E68: MARTHA LUCIA GÓMEZ GONZÁLEZ | F68: VIRTUAL | G68: Ventanilla de radicación | I68: Ciudadanía | J68: Mujer | N68: Derecho de petición de interés particular | O68: Asesoría en administración y sostenibilidad del espacio público | P68: Asesoría en administración y sostenibilidad del espacio público | Q68: DERECHO DE PETICION OBSTRUCCION DE ESPACIO PUBLICO | R68: Asignar | S68: SAI | T68: No registra
A69: 68 | B69: 2021 | C69: ENERO | D69: 44211 | E69: MARTHA LUCIA GÓMEZ GONZÁLEZ | F69: VIRTUAL | G69: Ventanilla de radicación | I69: Ciudadanía | J69: Mujer | N69: Derecho de petición de interés particular | O69: Certificación de la propiedad inmobiliaria distrital | P69: Certificación de la propiedad inmobiliaria distrital | Q69: DERECHO DE PETICION SOLICITUD DE CERTIFICACIONES | R69: Asignar | S69: OAJ | T69: No registra
A70: 69 | B70: 2021 | C70: ENERO | D70: 44211 | E70: MARTHA LUCIA GÓMEZ GONZÁLEZ | F70: VIRTUAL | G70: Ventanilla de radicación | I70: Ciudadanía | J70: Mujer | N70: Derecho de petición de interés particular | O70: Certificación de la propiedad inmobiliaria distrital | P70: Certificación de la propiedad inmobiliaria distrital | Q70: DERECHO DE PETICION SOLICITUD DE CERTIFICACIONES | R70: Asignar | S70: SAF | T70: No registra
A71: 70 | B71: 2021 | C71: ENERO | D71: 44211 | E71: MARTHA LUCIA GÓMEZ GONZÁLEZ | F71: VIRTUAL | G71: Ventanilla de radicación | I71: Ciudadanía | J71: Mujer | N71: Derecho de petición de interés particular | O71: Asesoría en administración y sostenibilidad del espacio público | P71: Asesoría en administración y sostenibilidad del espacio público | Q71: DERECHO DE PETICION evidente oclusion presentada en la calle cerrada que se ubica en la calle 9 sur 25a - 11 barrio la fraguita | R71: Asignar | S71: SAI | T71: No registra
A72: 71 | B72: 2021 | C72: ENERO | D72: 44211 | E72: MARTHA LUCIA GÓMEZ GONZÁLEZ | F72: VIRTUAL | G72: Ventanilla de radicación | I72: Ciudadanía | J72: Mujer | N72: Derecho de petición de interés particular | O72: Consulta general | P72: Consulta general | Q72: DERECHO DE PETICION ÁEREA DE MANTENIMIENTO A QUIEN CORRESPONDA | R72: Asignar | S72: SAI | T72: No registra
A73: 72 | B73: 2021 | C73: ENERO | D73: 44214 | E73: MARTHA LUCIA GÓMEZ GONZÁLEZ | F73: VIRTUAL | G73: Ventanilla de radicación | I73: Ciudadanía | J73: Hombre | N73: Derecho de petición de interés particular | O73: Asesoría en administración y sostenibilidad del espacio público | P73: Asesoría en administración y sostenibilidad del espacio público | Q73: DENUNCIA EXTENSION DE ACTIVIDAD COMERCIAL | R73: Asignar | S73: SAI | T73: No registra
A74: 73 | B74: 2021 | C74: ENERO | D74: 44214 | E74: MARTHA LUCIA GÓMEZ GONZÁLEZ | F74: VIRTUAL | G74: Ventanilla de radicación | I74: Ciudadanía | J74: Hombre | N74: Derecho de petición de interés particular | O74: Asesoría en administración y sostenibilidad del espacio público | P74: Asesoría en administración y sostenibilidad del espacio público | Q74: DERECHO DE PETICION INVASIONDE ESPACIO PUBLICO | R74: Asignar | S74: SAI | T74: No registra
A75: 74 | B75: 2021 | C75: ENERO | D75: 44210 | E75: MARTHA LUCIA GÓMEZ GONZÁLEZ | F75: VIRTUAL | G75: Ventanilla de radicación | I75: Ciudadanía | J75: Mujer | N75: Derecho de petición de interés particular | O75: Consulta general | P75: Consulta general | Q75: RESPUESTA AL RADICADO DADEP ESTUVIMOS PENDIENTES DE LA VISITA Y NO LOS VIMOS PUEDEN POR FAVOR INFORMAR SI REALIZARON LA VISITA | R75: Asignar | S75: SAI DESPACHO | T75: No registra
A76: 75 | B76: 2021 | C76: ENERO | D76: 44210 | E76: MARTHA LUCIA GÓMEZ GONZÁLEZ | F76: VIRTUAL | G76: Ventanilla de radicación | I76: Ciudadanía | J76: Hombre | N76: Derecho de petición de interés particular | O76: Asesoría en administración y sostenibilidad del espacio público | P76: Asesoría en administración y sostenibilidad del espacio público | Q76: RESPUESTA DERECHO DE PETICION EL 12 DE ENERO RECIBI(MISMA RESPUETA RECIBIDA EL 13-01-2021 EN DONDE INFORMO MI INCONFORMIDAD A SU RESPUESTA | R76: Asignar | S76: SAI DESPACHO | T76: No registra
A77: 76 | B77: 2021 | C77: ENERO | D77: 44210 | E77: MARTHA LUCIA GÓMEZ GONZÁLEZ | F77: VIRTUAL | G77: Ventanilla de radicación | I77: Ciudadanía | J77: Hombre | N77: Derecho de petición de interés particular | O77: Asesoría en administración y sostenibilidad del espacio público | P77: Asesoría en administración y sostenibilidad del espacio público | Q77: En su respuesta al derecho de petici??n 20213010000501 en el cual solicitamos ???se tomen las medidas a que haya lugar para prevenir y enfrentar las situaciones de inseguridad que se vienen presentado en el sector localizado en la acera de la Carrera 30 carril Sur ??? norte entre calles 17 y 18 respecto del robo organizado por parte de vendedores | R77: Asignar | S77: SAI DESPACHO | T77: No registra
A78: 77 | B78: 2021 | C78: ENERO | D78: 44210 | E78: MARTHA LUCIA GÓMEZ GONZÁLEZ | F78: VIRTUAL | G78: Ventanilla de radicación | I78: Ciudadanía | J78: Hombre | N78: Derecho de petición de interés particular | O78: Asesoría en administración y sostenibilidad del espacio público | P78: Asesoría en administración y sostenibilidad del espacio público | Q78: OCUPACION INDEBIDA ESPACIO PUBLICO | R78: Asignar | S78: SAI DESPACHO | T78: No registra
A79: 78 | B79: 2021 | C79: ENERO | D79: 44215 | E79: MARTHA LUCIA GÓMEZ GONZÁLEZ | F79: VIRTUAL | G79: Ventanilla de radicación | I79: Entidades y Organismos Distritales | J79: N/A | N79: Derecho de petición de interés particular | O79: Asesoría en administración y sostenibilidad del espacio público | P79: Asesoría en administración y sostenibilidad del espacio público | Q79: TRASLADO-DERECHO DE PETICION SOLICITUD COPIA RESOLUCIóN | R79: Asignar | S79: SRI | T79: No registra
A80: 79 | B80: 2021 | C80: ENERO | D80: 44216 | E80: WILMAR FERNANDO GUALDRÓN ARDILA | F80: VIRTUAL | G80: Ventanilla de radicación | I80: Ciudadanía | J80: Mujer | N80: Derecho de petición de interés particular | O80: Certificación de la propiedad inmobiliaria distrital | P80: Certificación de la propiedad inmobiliaria distrital | Q80: SOLICITUD CERTIFICACION CONTRATO DE PRESTACION DE SERVICIOS | R80: Asignar | S80: OAJ | T80: No registra
A81: 80 | B81: 2021 | C81: ENERO | D81: 44211 | E81: WILMAR FERNANDO GUALDRÓN ARDILA | F81: VIRTUAL | G81: Ventanilla de radicación | I81: Ciudadanía | J81: Hombre | N81: Derecho de petición de interés particular | O81: Asesoría en administración y sostenibilidad del espacio público | P81: Asesoría en administración y sostenibilidad del espacio público | Q81: Respuesta al Radicado DADEP N?? 20203060137481 | R81: Asignar | S81: SAI DESPACHO | T81: No registra
A82: 81 | B82: 2021 | C82: ENERO | D82: 44211 | E82: WILMAR FERNANDO GUALDRÓN ARDILA | F82: VIRTUAL | G82: Ventanilla de radicación | I82: Ciudadanía | J82: Mujer | N82: Derecho de petición de interés particular | O82: Asesoría en administración y sostenibilidad del espacio público | P82: Asesoría en administración y sostenibilidad del espacio público | Q82: Solicito adici??n de respuesta al derecho de petici??n, puesto que no se hace menci??n a las acciones que tomar?? la Secretar??a de Tr??nsito, a fin de evitar la circulaci??n permanente de carretas y motos por el camino peatonal ubicado en la carrera 46 entre calles 127 A y 127B. | R82: Asignar | S82: SAI DESPACHO | T82: No registra
A83: 82 | B83: 2021 | C83: ENERO | D83: 44216 | E83: MARTHA LUCIA GÓMEZ GONZÁLEZ | F83: VIRTUAL | G83: Ventanilla de radicación | I83: Anónimo | J83: N/A | N83: Derecho de petición de interés particular | O83: Asesoría en administración y sostenibilidad del espacio público | P83: Asesoría en administración y sostenibilidad del espacio público | Q83: TRASLADO -INVASION DE ESPACIO PUBLICO | R83: Asignar | S83: DIR | T83: No registra
A84: 83 | B84: 2021 | C84: ENERO | D84: 44216 | E84: WILMAR FERNANDO GUALDRÓN ARDILA | F84: VIRTUAL | G84: Ventanilla de radicación | I84: Ciudadanía | J84: Hombre | N84: Derecho de petición de interés particular | O84: Asesoría en administración y sostenibilidad del espacio público | P84: Asesoría en administración y sostenibilidad del espacio público | Q84: TRASLADO- COLEGIO ABANDONADO | R84: Asignar | S84: DIR | T84: No registra
A85: 84 | B85: 2021 | C85: ENERO | D85: 44216 | E85: WILMAR FERNANDO GUALDRÓN ARDILA | F85: VIRTUAL | G85: Ventanilla de radicación | I85: Junta de Acción Comunal | J85: N/A | N85: Derecho de petición de interés general | O85: Asesoría en administración y sostenibilidad del espacio público | P85: Asesoría en administración y sostenibilidad del espacio público | Q85: SOLICITUD DE TRASLADO DE VENDEDORES INFORMALES | R85: Asignar | S85: SAI | T85: No registra
A86: 85 | B86: 2021 | C86: ENERO | D86: 44216 | E86: WILMAR FERNANDO GUALDRÓN ARDILA | F86: VIRTUAL | G86: Ventanilla de radicación | I86: Anónimo | J86: N/A | N86: Derecho de petición de interés particular | O86: Estudio de la viabilidad de las solicitudes de administración de bienes públicos | P86: Asesoria en contratos de administración | Q86: TRASLADO- INTERVENCION POR MANEJO DE PARQUEADEROS | R86: Asignar | S86: SAI | T86: No registra
A87: 86 | B87: 2021 | C87: ENERO | D87: 44216 | E87: WILMAR FERNANDO GUALDRÓN ARDILA | F87: VIRTUAL | G87: Ventanilla de radicación | I87: Entidades y Organismos Distritales | J87: N/A | N87: Derecho de petición de interés particular | O87: Estudio de la viabilidad de las solicitudes de administración de bienes públicos | P87: Asesoria en contratos de administración | Q87: TRASLADO- SOLICITUD DE VERIFICACION DE PARQUEADEROS EN ESPACIO PUBLICO | R87: Asignar | S87: SAI | T87: No registra
A88: 87 | B88: 2021 | C88: ENERO | D88: 44216 | E88: WILMAR FERNANDO GUALDRÓN ARDILA | F88: VIRTUAL | G88: Ventanilla de radicación | I88: Empresa privada | J88: N/A | N88: Felicitación | O88: Consulta general | P88: Consulta general | Q88: MENSAJE DE AGRADECIMIENTO POR DONACION DE MATERIAL | R88: Asignar | S88: SAF | T88: No registra
A89: 88 | B89: 2021 | C89: ENERO | D89: 44216 | E89: WILMAR FERNANDO GUALDRÓN ARDILA | F89: VIRTUAL | G89: Ventanilla de radicación | I89: Grupo comunitario | J89: N/A | N89: Derecho de petición de interés general | O89: Asesoría en administración y sostenibilidad del espacio público | P89: Asesoría en administración y sostenibilidad del espacio público | Q89: INCONFORMIDAD POR POSTURA DE BUSTO EN PARQUE NOGAL | R89: Asignar | S89: SAI | T89: No registra
A90: 89 | B90: 2021 | C90: ENERO | D90: 44214 | E90: WILMAR FERNANDO GUALDRÓN ARDILA | F90: VIRTUAL | G90: Ventanilla de radicación | I90: Ciudadanía | J90: Mujer | N90: Derecho de petición de interés particular | O90: Asesoría en administración y sostenibilidad del espacio público | P90: Asesoría en administración y sostenibilidad del espacio público | Q90: ubicaron dos bolardos al ingreso de la v??a, los cuales est??n afectando a todos los residentes, somos varios vecinos que pertenecemos al grupo de la tercera edad, y en otros casos tenemos residentes en condici??n de discapacidad que requieren cuidados particulares por parte de las entidades de salud y no ha sido posible el ingreso de una ambulanc | R90: Asignar | S90: SAI DESPACHO | T90: No registra
A91: 90 | B91: 2021 | C91: ENERO | D91: 44214 | E91: WILMAR FERNANDO GUALDRÓN ARDILA | F91: VIRTUAL | G91: Ventanilla de radicación | I91: Ciudadanía | J91: Hombre | N91: Derecho de petición de interés particular | O91: Asesoría en administración y sostenibilidad del espacio público | P91: Asesoría en administración y sostenibilidad del espacio público | Q91: QUEJA POR RUIDO EN ESPACIO PUBLICO | R91: Asignar | S91: SAI DESPACHO | T91: No registra
A92: 91 | B92: 2021 | C92: ENERO | D92: 44214 | E92: WILMAR FERNANDO GUALDRÓN ARDILA | F92: VIRTUAL | G92: Ventanilla de radicación | I92: Ciudadanía | J92: Hombre | N92: Derecho de petición de interés particular | O92: Asesoría en administración y sostenibilidad del espacio público | P92: Asesoría en administración y sostenibilidad del espacio público | Q92: DERECHO DE PETICI??N PARA TRASLADO DE TRANSFORMADOR Y RETIRO DE CABLES EN DESUSO. | R92: Asignar | S92: SAI DESPACHO | T92: No registra
A93: 92 | B93: 2021 | C93: ENERO | D93: 44214 | E93: WILMAR FERNANDO GUALDRÓN ARDILA | F93: VIRTUAL | G93: Ventanilla de radicación | I93: Ciudadanía | J93: Mujer | N93: Derecho de petición de interés particular | O93: Estudio de la viabilidad de las solicitudes de administración de bienes públicos | P93: Asesoria en contratos de administración | Q93: solicitar informaci??n acerca de cu??les son los requisitos para adquirir la administraci??n del parqueadero denominado La Bah??a,ubicado entre los conjuntos Parques de Galicia y Reservas de Galicia, en la direcci??n Cr 73 F n 60 A sur 40 establecido como espacio p??blico | R93: Asignar | S93: SAI DESPACHO | T93: No registra
A94: 93 | B94: 2021 | C94: ENERO | D94: 44214 | E94: WILMAR FERNANDO GUALDRÓN ARDILA | F94: VIRTUAL | G94: Ventanilla de radicación | I94: Ciudadanía | J94: Hombre | N94: Derecho de petición de interés particular | O94: Asesoría en administración y sostenibilidad del espacio público | P94: Asesoría en administración y sostenibilidad del espacio público | Q94: CERRAMIENTO LOTES DEL DISTRITO | R94: Asignar | S94: SAI DESPACHO | T94: No registra
A95: 94 | B95: 2021 | C95: ENERO | D95: 44217 | E95: WILMAR FERNANDO GUALDRÓN ARDILA | F95: VIRTUAL | G95: Ventanilla de radicación | I95: Ciudadanía | J95: Hombre | N95: Derecho de petición de interés particular | O95: Estudio de la viabilidad de las solicitudes de administración de bienes públicos | P95: Asesoria en contratos de administración | Q95: INFORMACION SOBRE RECURSOS PARA CUSTODIA DE BAHIAS | R95: Asignar | S95: SAI | T95: No registra
A96: 95 | B96: 2021 | C96: ENERO | D96: 44217 | E96: WILMAR FERNANDO GUALDRÓN ARDILA | F96: VIRTUAL | G96: Ventanilla de radicación | I96: Entidades y Organismos Distritales | J96: N/A | N96: Derecho de petición de interés particular | O96: Asesoría en administración y sostenibilidad del espacio público | P96: Asesoría en administración y sostenibilidad del espacio público | Q96: TRASLADO- IRREGULARIDADES CONTRATO MOBILIARIO URBANO | R96: Asignar | S96: DIR | T96: No registra
A97: 96 | B97: 2021 | C97: ENERO | D97: 44217 | E97: MARTHA LUCIA GÓMEZ GONZÁLEZ | F97: VIRTUAL | G97: Ventanilla de radicación | I97: Ciudadanía | J97: Hombre | N97: Derecho de petición de interés particular | O97: Estudio de la viabilidad de las solicitudes de administración de bienes públicos | P97: Asesoria en contratos de administración | Q97: SOLICITUD PERMISO A UNA ACTIVIDAD PUBLICITARIA EN ESPACIO PUBLICO | R97: Asignar | S97: SAI | T97: No registra
A98: 97 | B98: 2021 | C98: ENERO | D98: 44217 | E98: MARTHA LUCIA GÓMEZ GONZÁLEZ | F98: VIRTUAL | G98: Ventanilla de radicación | I98: Entidades y Organismos Distritales | J98: N/A | N98: Derecho de petición de interés general | O98: Asesoría en administración y sostenibilidad del espacio público | P98: Asesoría en administración y sostenibilidad del espacio público | Q98: TRASLADO-SOLICITUD DE INSTALACION DE BOLARDOS EN AREA PEATONAL POR SEGURIDAD DE TRANSEUNTES | R98: Asignar | S98: SAI | T98: No registra
A99: 98 | B99: 2021 | C99: ENERO | D99: 44217 | E99: MARTHA LUCIA GÓMEZ GONZÁLEZ | F99: VIRTUAL | G99: Ventanilla de radicación | I99: Entidades y Organismos Distritales | J99: N/A | N99: Derecho de petición de interés general | O99: Asesoría en administración y sostenibilidad del espacio público | P99: Asesoría en administración y sostenibilidad del espacio público | Q99: TRASLADO SOLICITUF DE VIABILIDAD CERTIFICADO PARA INTERVENCION RUPI 1256-10 CODIGO IDRD 07-030 | R99: Asignar | S99: SRI | T99: No registra
A100: 99 | B100: 2021 | C100: ENERO | D100: 44217 | E100: MARTHA LUCIA GÓMEZ GONZÁLEZ | F100: VIRTUAL | G100: Ventanilla de radicación | I100: Entidades y Organismos Distritales | J100: N/A | N100: Derecho de petición de interés particular | O100: Certificación de la propiedad inmobiliaria distrital | P100: Certificación de la propiedad inmobiliaria distrital | Q100: TRASLADO -SOLICITUD UN LISTADO GENERAL DE LOS LOTES DEL DISTRITO | R100: Asignar | S100: SRI | T100: No registra
A101: 100 | B101: 2021 | C101: ENERO | D101: 44217 | E101: WILMAR FERNANDO GUALDRÓN ARDILA | F101: VIRTUAL | G101: Ventanilla de radicación | I101: Entidades y Organismos Distritales | J101: N/A | N101: Derecho de petición de interés particular | O101: Estudio de la viabilidad de las solicitudes de administración de bienes públicos | P101: Asesoria en contratos de administración | Q101: TRASLADO- SOLICITUD DE INFORMACION DE PARQUEADERO | R101: Asignar | S101: SAI | T101: No registra
A102: 101 | B102: 2021 | C102: ENERO | D102: 44217 | E102: WILMAR FERNANDO GUALDRÓN ARDILA | F102: VIRTUAL | G102: Ventanilla de radicación | I102: Entidades y Organismos Distritales | J102: N/A | N102: Derecho de petición de interés particular | O102: Estudio de la viabilidad de las solicitudes de administración de bienes públicos | P102: Asesoria en contratos de administración | Q102: TRASLADO- SOLICITUD DE USO DE ESPACIO PUBLICO | R102: Asignar | S102: SAI | T102: No registra
A103: 102 | B103: 2021 | C103: ENERO | D103: 44218 | E103: MARTHA LUCIA GÓMEZ GONZÁLEZ | F103: VIRTUAL | G103: Ventanilla de radicación | I103: Empresa privada | J103: N/A | N103: Derecho de petición de interés particular | O103: Incorporación y entrega de las áreas de cesión a favor del municipio | P103: Cabida y linderos | Q103: DERECHO DE PETICION -RECTIFICACION DE LINDEROS UNIDAD DE PROTECCION INTEGRAL OASIS | R103: Asignar | S103: SRI | T103: No registra
A104: 103 | B104: 2021 | C104: ENERO | D104: 44218 | E104: WILMAR FERNANDO GUALDRÓN ARDILA | F104: VIRTUAL | G104: Ventanilla de radicación | I104: Ciudadanía | J104: Hombre | N104: Derecho de petición de interés particular | O104: Certificación de la propiedad inmobiliaria distrital | P104: Certificación de la propiedad inmobiliaria distrital | Q104: SOLICITUD DE INFORMACION DE PREDIO | R104: Asignar | S104: SRI | T104: No registra
A105: 104 | B105: 2021 | C105: ENERO | D105: 44218 | E105: WILMAR FERNANDO GUALDRÓN ARDILA | F105: VIRTUAL | G105: Ventanilla de radicación | I105: Anónimo | J105: N/A | N105: Derecho de petición de interés particular | O105: Asesoría en administración y sostenibilidad del espacio público | P105: Asesoría en administración y sostenibilidad del espacio público | Q105: INVASION DE ESPACIO PUBLICO POR CAMIONES DE COMIDA | R105: Asignar | S105: SAI | T105: No registra
A106: 105 | B106: 2021 | C106: ENERO | D106: 44218 | E106: WILMAR FERNANDO GUALDRÓN ARDILA | F106: VIRTUAL | G106: Ventanilla de radicación | I106: Grupo comunitario | J106: N/A | N106: Derecho de petición de interés particular | O106: Asesoría en administración y sostenibilidad del espacio público | P106: Asesoría en administración y sostenibilidad del espacio público | Q106: SOLICITUD DE PERMISO DE PERFORACION DE PREDIOS | R106: Asignar | S106: SAI | T106: No registra
A107: 106 | B107: 2021 | C107: ENERO | D107: 44218 | E107: WILMAR FERNANDO GUALDRÓN ARDILA | F107: VIRTUAL | G107: Ventanilla de radicación | I107: Anónimo | J107: N/A | N107: Derecho de petición de interés particular | O107: Consulta general | P107: Consulta general | Q107: PROTECCION DE DATOS PERSONALES E INFORMACION | R107: Asignar | S107: SAI | T107: No registra
A108: 107 | B108: 2021 | C108: ENERO | D108: 44218 | E108: MARTHA LUCIA GÓMEZ GONZÁLEZ | F108: VIRTUAL | G108: Ventanilla de radicación | I108: Grupo comunitario | J108: N/A | N108: Derecho de petición de interés general | O108: Consulta general | P108: Consulta general | Q108: INVITACION ASAMBLEA GENEAL EXTRAORDINARIA | R108: Asignar | S108: SAI | T108: No registra
A109: 108 | B109: 2021 | C109: ENERO | D109: 44218 | E109: WILMAR FERNANDO GUALDRÓN ARDILA | F109: VIRTUAL | G109: Ventanilla de radicación | I109: Entidades y Organismos Distritales | J109: N/A | N109: Derecho de petición de interés particular | O109: Estudio de la viabilidad de las solicitudes de administración de bienes públicos | P109: Asesoria en contratos de administración | Q109: SOLICITUD DE USO DE ESPACIO PUBLICO | R109: Asignar | S109: SAI | T109: No registra
A110: 109 | B110: 2021 | C110: ENERO | D110: 44218 | E110: WILMAR FERNANDO GUALDRÓN ARDILA | F110: VIRTUAL | G110: Ventanilla de radicación | I110: Empresa privada | J110: N/A | N110: Derecho de petición de interés particular | O110: Estudio de la viabilidad de las solicitudes de administración de bienes públicos | P110: Asesoria en contratos de administración | Q110: CONCEPTO PARA CONTRATO DE CONCESION PARA PROVISION DE FLOTA SIPT | R110: Asignar | S110: SAI | T110: No registra
A111: 110 | B111: 2021 | C111: ENERO | D111: 44218 | E111: WILMAR FERNANDO GUALDRÓN ARDILA | F111: VIRTUAL | G111: Ventanilla de radicación | I111: Entidades y Organismos Distritales | J111: N/A | N111: Derecho de petición de interés particular | O111: Estudio de la viabilidad de las solicitudes de administración de bienes públicos | P111: Asesoria en contratos de administración | Q111: PRESUNTAS IRREGULARIDADES CON ADMINISTRACION DE PARQUEADEROS | R111: Asignar | S111: DIR | T111: No registra
A112: 111 | B112: 2021 | C112: ENERO | D112: 44218 | E112: WILMAR FERNANDO GUALDRÓN ARDILA | F112: VIRTUAL | G112: Ventanilla de radicación | I112: Ciudadanía | J112: Hombre | N112: Derecho de petición de interés particular | O112: Asesoría en administración y sostenibilidad del espacio público | P112: Asesoría en administración y sostenibilidad del espacio público | Q112: OCUPACION DE ESPACIO PUBLICO | R112: Asignar | S112: SAI | T112: No registra
A113: 112 | B113: 2021 | C113: ENERO | D113: 44221 | E113: MARTHA LUCIA GÓMEZ GONZÁLEZ | F113: VIRTUAL | G113: Ventanilla de radicación | I113: Ciudadanía | J113: Hombre | N113: Derecho de petición de interés particular | O113: Estudio de la viabilidad de las solicitudes de administración de bienes públicos | P113: Asesoria en contratos de administración | Q113: SOLICITUD DE USO DE PREDIO | R113: Asignar | S113: SAI | T113: No registra
A114: 113 | B114: 2021 | C114: ENERO | D114: 44217 | E114: MARTHA LUCIA GÓMEZ GONZÁLEZ | F114: VIRTUAL | G114: Ventanilla de radicación | I114: Entidades y Organismos Distritales | J114: N/A | N114: Derecho de petición de interés general | O114: Asesoría en administración y sostenibilidad del espacio público | P114: Asesoría en administración y sostenibilidad del espacio público | Q114: COPIA. SOLICITUD CONSIDERACION NUEVO ESPACIO. BUSTO MUSTAFA KEMAL ATATURK | R114: Asignar | S114: SAI DESPACHO | T114: No registra
A115: 114 | B115: 2021 | C115: ENERO | D115: 44217 | E115: MARTHA LUCIA GÓMEZ GONZÁLEZ | F115: VIRTUAL | G115: Ventanilla de radicación | I115: Ciudadanía | J115: Mujer | N115: Derecho de petición de interés particular | O115: Asesoría en administración y sostenibilidad del espacio público | P115: Asesoría en administración y sostenibilidad del espacio público | Q115: RESPUESTA A RADICADO DADEP 20204060002132. SOLICITUD DE INTERVENCION | R115: Asignar | S115: SAI DESPACHO | T115: No registra
A116: 115 | B116: 2021 | C116: ENERO | D116: 44217 | E116: MARTHA LUCIA GÓMEZ GONZÁLEZ | F116: VIRTUAL | G116: Ventanilla de radicación | I116: Empresa privada | J116: N/A | N116: Derecho de petición de interés general | O116: Asesoría en administración y sostenibilidad del espacio público | P116: Asesoría en administración y sostenibilidad del espacio público | Q116: SOLICITUD DE PODA DE PREDIOS DE PROPIEDAD DEL DISTRITO CAPITAL UBICADOS EN CR 1 ESTE 22-65 | R116: Asignar | S116: SAI DESPACHO | T116: No registra
A117: 116 | B117: 2021 | C117: ENERO | D117: 44221 | E117: WILMAR FERNANDO GUALDRÓN ARDILA | F117: VIRTUAL | G117: Ventanilla de radicación | I117: Ciudadanía | J117: Mujer | N117: Derecho de petición de interés particular | O117: Certificación de la propiedad inmobiliaria distrital | P117: Certificación de la propiedad inmobiliaria distrital | Q117: SOLICITUD DE INFORMACION DE PREDIO | R117: Asignar | S117: SRI | T117: No registra
A118: 117 | B118: 2021 | C118: ENERO | D118: 44221 | E118: WILMAR FERNANDO GUALDRÓN ARDILA | F118: VIRTUAL | G118: Ventanilla de radicación | I118: Ciudadanía | J118: Mujer | N118: Derecho de petición de interés particular | O118: Consulta general | P118: Consulta general | Q118: SOLICITUD DE INFORMACION SOBRE ESTADOS DE RADICADOS | R118: Asignar | S118: SRI | T118: No registra
A119: 118 | B119: 2021 | C119: ENERO | D119: 44221 | E119: MARTHA LUCIA GÓMEZ GONZÁLEZ | F119: VIRTUAL | G119: Ventanilla de radicación | I119: Anónimo | J119: N/A | N119: Derecho de petición de interés particular | O119: Asesoría en administración y sostenibilidad del espacio público | P119: Asesoría en administración y sostenibilidad del espacio público | Q119: INVASION DE ESPACIO PUBLICO POR CAMIONES DE COMIDA | R119: Asignar | S119: SAI | T119: No registra
A120: 119 | B120: 2021 | C120: ENERO | D120: 44221 | E120: MARTHA LUCIA GÓMEZ GONZÁLEZ | F120: VIRTUAL | G120: Ventanilla de radicación | I120: Ciudadanía | J120: Hombre | N120: Derecho de petición de interés particular | O120: Asesoría en administración y sostenibilidad del espacio público | P120: Asesoría en administración y sostenibilidad del espacio público | Q120: CERRAMIENTO DE LA CL 152B CON 7 BARRIO CEDRO SALAZAR | R120: Asignar | S120: SAI | T120: No registra
A121: 120 | B121: 2021 | C121: ENERO | D121: 44221 | E121: MARTHA LUCIA GÓMEZ GONZÁLEZ | F121: VIRTUAL | G121: Ventanilla de radicación | I121: Junta de Acción Comunal | J121: N/A | N121: Derecho de petición de interés general | O121: Asesoría en administración y sostenibilidad del espacio público | P121: Asesoría en administración y sostenibilidad del espacio público | Q121: SOLICITUD DE APLOME DE POSTES APROBADOS EN EL AÑO 2019 | R121: Asignar | S121: SAI | T121: No registra
A122: 121 | B122: 2021 | C122: ENERO | D122: 44221 | E122: MARTHA LUCIA GÓMEZ GONZÁLEZ | F122: VIRTUAL | G122: Ventanilla de radicación | I122: Empresa privada | J122: N/A | N122: Derecho de petición de interés particular | O122: Estudio de la viabilidad de las solicitudes de administración de bienes públicos | P122: Asesoria en contratos de administración | Q122: SOLICITUD ADMINISTRACION PARQUEADEROS | R122: Asignar | S122: SAI | T122: No registra
A123: 122 | B123: 2021 | C123: ENERO | D123: 44222 | E123: WILMAR FERNANDO GUALDRÓN ARDILA | F123: VIRTUAL | G123: Ventanilla de radicación | I123: Ciudadanía | J123: Hombre | N123: Derecho de petición de interés particular | O123: Estudio de la viabilidad de las solicitudes de administración de bienes públicos | P123: Asesoria en contratos de administración | Q123: SOLICITUD DE PERMISO PARA INSTALACION DE FOOD TRUCK | R123: Asignar | S123: SAI | T123: No registra
A124: 123 | B124: 2021 | C124: ENERO | D124: 44222 | E124: WILMAR FERNANDO GUALDRÓN ARDILA | F124: VIRTUAL | G124: Ventanilla de radicación | I124: Ciudadanía | J124: Hombre | N124: Derecho de petición de interés particular | O124: Certificación de la propiedad inmobiliaria distrital | P124: Certificación de la propiedad inmobiliaria distrital | Q124: SOLICITUD DE CERTIFICACION DE PREDIO | R124: Asignar | S124: SRI | T124: No registra
A125: 124 | B125: 2021 | C125: ENERO | D125: 44222 | E125: WILMAR FERNANDO GUALDRÓN ARDILA | F125: VIRTUAL | G125: Ventanilla de radicación | I125: Ciudadanía | J125: Hombre | N125: Derecho de petición de interés particular | O125: Certificación de la propiedad inmobiliaria distrital | P125: Certificación de la propiedad inmobiliaria distrital | Q125: SOLICITUD DELIMITACION AREA PRIVADA Y ZONA DE USO PUBLICO | R125: Asignar | S125: SRI | T125: No registra
A126: 125 | B126: 2021 | C126: ENERO | D126: 44222 | E126: WILMAR FERNANDO GUALDRÓN ARDILA | F126: VIRTUAL | G126: Ventanilla de radicación | I126: Entidades y Organismos Distritales | J126: N/A | N126: Derecho de petición de interés particular | O126: Asesoría en administración y sostenibilidad del espacio público | P126: Asesoría en administración y sostenibilidad del espacio público | Q126: TRASLADO- SOLICITUD DE INSTALACION DE BOLARDOS | R126: Asignar | S126: SAI | T126: No registra
A127: 126 | B127: 2021 | C127: ENERO | D127: 44222 | E127: MARTHA LUCIA GÓMEZ GONZÁLEZ | F127: VIRTUAL | G127: Ventanilla de radicación | I127: Empresa privada | J127: N/A | N127: Derecho de petición de interés particular | O127: Asesoría en administración y sostenibilidad del espacio público | P127: Asesoría en administración y sostenibilidad del espacio público | Q127: INVASION DE VENDEDORES AMBULANTES | R127: Asignar | S127: SAI | T127: No registra
A128: 127 | B128: 2021 | C128: ENERO | D128: 44223 | E128: WILMAR FERNANDO GUALDRÓN ARDILA | F128: VIRTUAL | G128: Ventanilla de radicación | I128: Ciudadanía | J128: Hombre | N128: Derecho de petición de interés particular | O128: Asesoría en administración y sostenibilidad del espacio público | P128: Asesoría en administración y sostenibilidad del espacio público | Q128: SOLICITUD DE RESTITUCION DE ESPACIO PUBLICO | R128: Asignar | S128: SAI | T128: No registra
A129: 128 | B129: 2021 | C129: ENERO | D129: 44223 | E129: MARTHA LUCIA GÓMEZ GONZÁLEZ | F129: VIRTUAL | G129: Ventanilla de radicación | I129: Grupo comunitario | J129: N/A | N129: Derecho de petición de interés particular | O129: Estudio de la viabilidad de las solicitudes de administración de bienes públicos | P129: Asesoria en contratos de administración | Q129: DERECHO DE PETICION CONOCER EL ESTADO ADMINISTRATIVO DE ESTE PARQUEAERO | R129: Asignar | S129: SAI | T129: No registra
A130: 129 | B130: 2021 | C130: ENERO | D130: 44223 | E130: MARTHA LUCIA GÓMEZ GONZÁLEZ | F130: VIRTUAL | G130: Ventanilla de radicación | I130: Entidades y Organismos Distritales | J130: N/A | N130: Derecho de petición de interés particular | O130: Estudio de la viabilidad de las solicitudes de administración de bienes públicos | P130: Asesoria en contratos de administración | Q130: DERECHO DE PETICION SOLICITO PERMISO PARA UTILIZAR ESPACIO PUBLICO | R130: Asignar | S130: SAI | T130: No registra
A131: 130 | B131: 2021 | C131: ENERO | D131: 44223 | E131: MARTHA LUCIA GÓMEZ GONZÁLEZ | F131: VIRTUAL | G131: Ventanilla de radicación | I131: Ciudadanía | J131: Mujer | N131: Derecho de petición de interés particular | O131: Estudio de la viabilidad de las solicitudes de administración de bienes públicos | P131: Asesoria en contratos de administración | Q131: DERECHO DE PETICION QUE PODEMOS HACER PARA LEGALIZAR POR MEDIO DE UN CONVENI SOLIDARIO EL MANEJO DE UN ESPACIO | R131: Asignar | S131: SAI | T131: No registra
A132: 131 | B132: 2021 | C132: ENERO | D132: 44223 | E132: WILMAR FERNANDO GUALDRÓN ARDILA | F132: VIRTUAL | G132: Ventanilla de radicación | I132: Empresa privada | J132: N/A | N132: Derecho de petición de interés particular | O132: Certificación de la propiedad inmobiliaria distrital | P132: Certificación de la propiedad inmobiliaria distrital | Q132: SOLICITUD DE INFORMACION PROCEDIMIENTO REUBICACION DE RUPI'S | R132: Asignar | S132: SRI | T132: No registra
A133: 132 | B133: 2021 | C133: ENERO | D133: 44223 | E133: MARTHA LUCIA GÓMEZ GONZÁLEZ | F133: VIRTUAL | G133: Ventanilla de radicación | I133: Empresa privada | J133: N/A | N133: Derecho de petición de interés general | O133: Estudio de la viabilidad de las solicitudes de administración de bienes públicos | P133: Asesoria en contratos de administración | Q133: SOLICITUD DE ADMINISTRAR SENDERO PEATONAL | R133: Asignar | S133: SAI | T133: No registra
A134: 133 | B134: 2021 | C134: ENERO | D134: 44224 | E134: MARTHA LUCIA GÓMEZ GONZÁLEZ | F134: VIRTUAL | G134: Ventanilla de radicación | I134: Ciudadanía | J134: Hombre | N134: Derecho de petición de interés particular | O134: Asesoría en administración y sostenibilidad del espacio público | P134: Asesoría en administración y sostenibilidad del espacio público | Q134: DERECHO DE PETICION CONSTRUCCION ILEGAL EN ESPACIO PUBLICO | R134: Asignar | S134: SAI | T134: No registra
A135: 134 | B135: 2021 | C135: ENERO | D135: 44221 | E135: MARTHA LUCIA GÓMEZ GONZÁLEZ | F135: VIRTUAL | G135: Ventanilla de radicación | I135: Empresa privada | J135: N/A | N135: Derecho de petición de interés particular | O135: Incorporación y entrega de las áreas de cesión a favor del municipio | P135: Cabida y linderos | Q135: Rad: 20204000102552 SOLICITUD INFORMACION SOBRE TRAMITE DL ASUNTO | R135: Asignar | S135: SRI DESPACHO | T135: No registra
A136: 135 | B136: 2021 | C136: ENERO | D136: 44221 | E136: MARTHA LUCIA GÓMEZ GONZÁLEZ | F136: VIRTUAL | G136: Ventanilla de radicación | I136: Junta de Acción Comunal | J136: N/A | N136: Derecho de petición de interés general | O136: Estudio de la viabilidad de las solicitudes de administración de bienes públicos | P136: Asesoria en contratos de administración | Q136: Soy la representante legal de la JAC 8 y 9 etapas Quiroga desde el inicio de mi administraci??n, como consta en el archivo manejado, por ustedes yo he venido solicitando la administraci??n de la ??nica bah??a parqueadero que hay en nuestro sector con Rupi 2947-3- | R136: Asignar | S136: SAI DESPACHO | T136: No registra
A137: 136 | B137: 2021 | C137: ENERO | D137: 44221 | E137: MARTHA LUCIA GÓMEZ GONZÁLEZ | F137: VIRTUAL | G137: Ventanilla de radicación | I137: Junta de Acción Comunal | J137: N/A | N137: Derecho de petición de interés general | O137: Estudio de la viabilidad de las solicitudes de administración de bienes públicos | P137: Asesoria en contratos de administración | Q137: PQRS - JAC Sabana de Tibabuyes | R137: Asignar | S137: SAI DESPACHO | T137: No registra
A138: 137 | B138: 2021 | C138: ENERO | D138: 44221 | E138: MARTHA LUCIA GÓMEZ GONZÁLEZ | F138: VIRTUAL | G138: Ventanilla de radicación | I138: Ciudadanía | J138: Hombre | N138: Derecho de petición de interés particular | O138: Asesoría en administración y sostenibilidad del espacio público | P138: Asesoría en administración y sostenibilidad del espacio público | Q138: DENUNCIA DE INVASION DE ESPACIO PUBLICO BAHIA RESERVA DE CANTALEJO - LOCALIDAD DE SUBA | R138: Asignar | S138: SAI DESPACHO | T138: No registra
A139: 138 | B139: 2021 | C139: ENERO | D139: 44221 | E139: MARTHA LUCIA GÓMEZ GONZÁLEZ | F139: VIRTUAL | G139: Ventanilla de radicación | I139: Empresa privada | J139: N/A | N139: Derecho de petición de interés general | O139: Asesoría en administración y sostenibilidad del espacio público | P139: Asesoría en administración y sostenibilidad del espacio público | Q139: DERECHO DE PETICION SEGURIDAD EN LA ZONA EN EL BARRIO PRADO VERANIEGO ALBERGA VARIOS CENTROS DE RECICLAJE EN LOS CUALES ASISTEN A VENDER VARIOS RECICLADORES SOLICITAMOS CAI | R139: Asignar | S139: SAI DESPACHO | T139: No registra
A140: 139 | B140: 2021 | C140: ENERO | D140: 44221 | E140: MARTHA LUCIA GÓMEZ GONZÁLEZ | F140: VIRTUAL | G140: Ventanilla de radicación | I140: Ciudadanía | J140: Mujer | N140: Derecho de petición de interés particular | O140: Asesoría en administración y sostenibilidad del espacio público | P140: Asesoría en administración y sostenibilidad del espacio público | Q140: DERECHO DE PETICION me dirijo a ustedes para formular la siguiente petici??n que es de inter??s general para los habitantes del Barrio Nuevo Chile, pues resulta relevante que se nos informen las acciones que se est??n tomando frente a la Recuperaci??n del Espacio P??blico ubicado en la localidad de Bosa | R140: Asignar | S140: SAI DESPACHO | T140: No registra
A141: 140 | B141: 2021 | C141: ENERO | D141: 44224 | E141: WILMAR FERNANDO GUALDRÓN ARDILA | F141: VIRTUAL | G141: Ventanilla de radicación | I141: Ciudadanía | J141: Hombre | N141: Derecho de petición de interés particular | O141: Asesoría en administración y sostenibilidad del espacio público | P141: Asesoría en administración y sostenibilidad del espacio público | Q141: SOLICITUD DE INFORMACION SOBRE IMPACTO AMBIENTAL DE EQUIPOS DE BOMBEO | R141: Asignar | S141: SAI | T141: No registra
A142: 141 | B142: 2021 | C142: ENERO | D142: 44222 | E142: WILMAR FERNANDO GUALDRÓN ARDILA | F142: VIRTUAL | G142: Ventanilla de radicación | I142: Grupo comunitario | J142: N/A | N142: Derecho de petición de interés general | O142: Asesoría en administración y sostenibilidad del espacio público | P142: Asesoría en administración y sostenibilidad del espacio público | Q142: DERECHO DE PETICION La comunidad de el barrio NUEVO CHILE informa a ustedes que el predio ubicado enla Kr 73 54 B 45 sur en es un terreno usado como parqueadero privado el cual est??invadiendo el espacio p??blico en su m??xima extensi??n y se encuentra afectando la ronda del rio Tunjuelo, situaci??n la cual nos esta generando problema de la v??a v | R142: Asignar | S142: SAI DESPACHO | T142: No registra
A143: 142 | B143: 2021 | C143: ENERO | D143: 44222 | E143: WILMAR FERNANDO GUALDRÓN ARDILA | F143: VIRTUAL | G143: Ventanilla de radicación | I143: Junta de Acción Comunal | J143: N/A | N143: Derecho de petición de interés general | O143: Estudio de la viabilidad de las solicitudes de administración de bienes públicos | P143: Asesoria en contratos de administración | Q143: CONVENIO SOLIDARIO Radicado DADEP No. 20203060137521manifiesta inter??s en suscribir CONVENIO SOLIDARIO lo cual anexa la siguiente documentaci??n requerida: | R143: Asignar | S143: SAI DESPACHO | T143: No registra
A144: 143 | B144: 2021 | C144: ENERO | D144: 44225 | E144: MARTHA LUCIA GÓMEZ GONZÁLEZ | F144: VIRTUAL | G144: Ventanilla de radicación | I144: Entidades y Organismos Nacionales | J144: N/A | N144: Derecho de petición de interés particular | O144: Asesoría en administración y sostenibilidad del espacio público | P144: Asesoría en administración y sostenibilidad del espacio público | Q144: DERECHO DE PETICION INVASION DE ESPACIO PUBLICO FRENTE A MI CASA | R144: Asignar | S144: SAI | T144: No registra
A145: 144 | B145: 2021 | C145: ENERO | D145: 44225 | E145: WILMAR FERNANDO GUALDRÓN ARDILA | F145: VIRTUAL | G145: Ventanilla de radicación | I145: Anónimo | J145: N/A | N145: Derecho de petición de interés general | O145: Asesoría en administración y sostenibilidad del espacio público | P145: Asesoría en administración y sostenibilidad del espacio público | Q145: PROTECCION DE LA VIDA DIGNA Y OCUPACION DE ESPACIO PUBLICO | R145: Asignar | S145: SAI | T145: No registra
A146: 145 | B146: 2021 | C146: ENERO | D146: 44225 | E146: MARTHA LUCIA GÓMEZ GONZÁLEZ | F146: VIRTUAL | G146: Ventanilla de radicación | I146: Junta de Acción Comunal | J146: N/A | N146: Derecho de petición de interés general | O146: Incorporación y entrega de las áreas de cesión a favor del municipio | P146: Cabida y linderos | Q146: DERECHO DE PETICION SOLICITUD DONACION LOTE EN TEUSAQUILLO | R146: Asignar | S146: SAI | T146: No registra
A147: 146 | B147: 2021 | C147: ENERO | D147: 44200 | E147: ALBEIRO ESCOBAR OCAMPO | F147: PRESENCIAL | G147: Cad calle 26 mod-152 | I147: Ciudadanía | J147: Mujer | K147: Padre/madre cabeza de familia | M147: DE 45 A 59 | N147: Asesoría | O147: Incorporación y entrega de las áreas de cesión a favor del municipio | P147: Cabida y linderos | Q147: CABIDA Y LINDEROS 2020EE39015 | R147: 0 | T147: 19 ciudad bolívar
A148: 147 | B148: 2021 | C148: ENERO | D148: 44201 | E148: ALBEIRO ESCOBAR OCAMPO | F148: PRESENCIAL | G148: Cad calle 26 mod-152 | I148: Ciudadanía | J148: Mujer | K148: Padre/madre cabeza de familia | M148: DE 45 A 59 | N148: Asesoría | O148: Incorporación y entrega de las áreas de cesión a favor del municipio | P148: Cabida y linderos | Q148: AAA0231CEAF | R148: Atención presencial | T148: 08 kennedy
A149: 148 | B149: 2021 | C149: ENERO | D149: 44202 | E149: ALBEIRO ESCOBAR OCAMPO | F149: PRESENCIAL | G149: Cad calle 26 mod-152 | I149: Ciudadanía | J149: Mujer | K149: Padre/madre cabeza de familia | M149: DE 45 A 59 | N149: Asesoría | O149: Incorporación y entrega de las áreas de cesión a favor del municipio | P149: Entrega de zonas de cesión | Q149: ENTREGA DE ZONAS DE CESION AAA0186RSWF COLEGIO ANGLOAMERICANO | R149: Atención presencial | T149: 11 suba
A150: 149 | B150: 2021 | C150: ENERO | D150: 44202 | E150: ALBEIRO ESCOBAR OCAMPO | F150: PRESENCIAL | G150: Cad calle 26 mod-152 | I150: Ciudadanía | J150: Hombre | K150: Padre/madre cabeza de familia | M150: 60 Y MAS | N150: Asesoría | O150: Certificación de la propiedad inmobiliaria distrital | P150: Certificación de la propiedad inmobiliaria distrital | Q150: COPIA ACTA RUPI 27 | R150: Atención presencial | T150: 11 suba
A151: 150 | B151: 2021 | C151: ENERO | D151: 44202 | E151: ALBEIRO ESCOBAR OCAMPO | F151: PRESENCIAL | G151: Cad calle 26 mod-152 | I151: Ciudadanía | J151: Hombre | K151: Padre/madre cabeza de familia | M151: 60 Y MAS | N151: Asesoría | O151: Incorporación y entrega de las áreas de cesión a favor del municipio | P151: Cabida y linderos | Q151: CABIDA Y LINDEROS 2020EE43816 AAA0026HRSK | R151: Atención presencial | T151: 05 usme
A152: 151 | B152: 2021 | C152: ENERO | D152: 44202 | E152: ALBEIRO ESCOBAR OCAMPO | F152: PRESENCIAL | G152: Cad calle 26 mod-152 | I152: Ciudadanía | J152: Hombre | K152: Padre/madre cabeza de familia | M152: 60 Y MAS | N152: Asesoría | O152: Incorporación y entrega de las áreas de cesión a favor del municipio | P152: Cabida y linderos | Q152: CABIDA Y LINDEROS AAA0167PFTO | R152: Atención presencial | T152: 01 usaquén
A153: 152 | B153: 2021 | C153: ENERO | D153: 44202 | E153: ALBEIRO ESCOBAR OCAMPO | F153: PRESENCIAL | G153: Cad calle 26 mod-152 | I153: Ciudadanía | J153: Mujer | K153: Padre/madre cabeza de familia | M153: 60 Y MAS | N153: Asesoría | O153: Certificación de la propiedad inmobiliaria distrital | P153: Certificación de la propiedad inmobiliaria distrital | Q153: CERTIFICACION RUPI 795-3/14 | R153: Atención presencial | T153: 07 bosa
A154: 153 | B154: 2021 | C154: ENERO | D154: 44215 | E154: ALBEIRO ESCOBAR OCAMPO | F154: PRESENCIAL | G154: Cad calle 26 mod-152 | I154: Ciudadanía | J154: Hombre | K154: Padre/madre cabeza de familia | M154: DE 45 A 59 | N154: Asesoría | O154: Certificación de la propiedad inmobiliaria distrital | P154: Certificación de la propiedad inmobiliaria distrital | Q154: CERTIFICACION RUPI 4312-3 | R154: Atención presencial | T154: 07 bosa
A155: 154 | B155: 2021 | C155: ENERO | D155: 44215 | E155: ALBEIRO ESCOBAR OCAMPO | F155: PRESENCIAL | G155: Cad calle 26 mod-152 | I155: Ciudadanía | J155: Mujer | K155: Padre/madre cabeza de familia | M155: 60 Y MAS | N155: Asesoría | O155: Certificación de la propiedad inmobiliaria distrital | P155: Certificación de la propiedad inmobiliaria distrital | Q155: SOBRANTES PREDIOS IDU FRENTE COLSUBSIDIO CALLE 26 | R155: Atención presencial | T155: 14 los mártires
A156: 155 | B156: 2021 | C156: ENERO | D156: 44215 | E156: ALBEIRO ESCOBAR OCAMPO | F156: PRESENCIAL | G156: Cad calle 26 mod-152 | I156: Ciudadanía | J156: Hombre | K156: Padre/madre cabeza de familia | M156: DE 35 A 44 | N156: Asesoría | O156: Incorporación y entrega de las áreas de cesión a favor del municipio | P156: Cabida y linderos | Q156: RADICADO 20204000147722 | R156: Atención presencial | T156: 19 ciudad bolívar
A157: 156 | B157: 2021 | C157: ENERO | D157: 44216 | E157: ALBEIRO ESCOBAR OCAMPO | F157: PRESENCIAL | G157: Cad calle 26 mod-152 | I157: Ciudadanía | J157: Hombre | K157: Padre/madre cabeza de familia | M157: 60 Y MAS | N157: Asesoría | O157: Consulta general | P157: consulta | Q157: RADICADO 20214000002361 | R157: Atención presencial | T157: 03 santa fe
A158: 157 | B158: 2021 | C158: ENERO | D158: 44216 | E158: ALBEIRO ESCOBAR OCAMPO | F158: PRESENCIAL | G158: Cad calle 26 mod-152 | I158: Ciudadanía | J158: Hombre | K158: Padre/madre cabeza de familia | M158: 60 Y MAS | N158: Asesoría | O158: Asesoría en administración y sostenibilidad del espacio público | P158: Denuncia por cerramiento | Q158: Invasion espacio publico | R158: Atención presencial | T158: 01 usaquén
A159: 158 | B159: 2021 | C159: ENERO | D159: 44216 | E159: ALBEIRO ESCOBAR OCAMPO | F159: PRESENCIAL | G159: Cad calle 26 mod-152 | I159: Ciudadanía | J159: Mujer | K159: Padre/madre cabeza de familia | M159: DE 45 A 59 | N159: Asesoría | O159: Incorporación y entrega de las áreas de cesión a favor del municipio | P159: Cabida y linderos | Q159: CABIDA Y LINDEROS 2020EE26974 - 20202030105401 | R159: Atención presencial | T159: 04 san cristóbal
A160: 159 | B160: 2021 | C160: ENERO | D160: 44217 | E160: ALBEIRO ESCOBAR OCAMPO | F160: PRESENCIAL | G160: Cad calle 26 mod-152 | I160: Ciudadanía | J160: Hombre | K160: Padre/madre cabeza de familia | M160: DE 45 A 59 | N160: Asesoría | O160: Consulta general | P160: consulta | Q160: LICENCIA DE INTERVENCION Y OCUPACION DE ESPACIO PUBLICO | R160: Atención presencial | T160: 01 usaquén
A161: 160 | B161: 2021 | C161: ENERO | D161: 44217 | E161: ALBEIRO ESCOBAR OCAMPO | F161: PRESENCIAL | G161: Cad calle 26 mod-152 | I161: Ciudadanía | J161: Mujer | K161: Padre/madre cabeza de familia | M161: DE 35 A 44 | N161: Asesoría | O161: Incorporación y entrega de las áreas de cesión a favor del municipio | P161: Entrega de zonas de cesión | Q161: RECIBO ZONA DE CESION RUPI 4210 | R161: Atención presencial | T161: 11 suba
A162: 161 | B162: 2021 | C162: ENERO | D162: 44217 | E162: ALBEIRO ESCOBAR OCAMPO | F162: PRESENCIAL | G162: Cad calle 26 mod-152 | I162: Ciudadanía | J162: Hombre | K162: Padre/madre cabeza de familia | M162: DE 45 A 59 | N162: Asesoría | O162: Certificación de la propiedad inmobiliaria distrital | P162: Certificación de la propiedad inmobiliaria distrital | Q162: CERTIFICACION RUPI 3512-8 | R162: Atención presencial | T162: 19 ciudad bolívar
A163: 162 | B163: 2021 | C163: ENERO | D163: 44221 | E163: ALBEIRO ESCOBAR OCAMPO | F163: PRESENCIAL | G163: Cad calle 26 mod-152 | I163: Ciudadanía | J163: Mujer | K163: Padre/madre cabeza de familia | M163: De 35 a 44 | N163: Asesoría | O163: Asesoría en administración y sostenibilidad del espacio público | P163: Asesoría en administración y sostenibilidad del espacio público | Q163: SOLICITUD CAMEP RUPI 2845-5 | R163: Atención presencial | T163: 11 suba
A164: 163 | B164: 2021 | C164: ENERO | D164: 44221 | E164: ALBEIRO ESCOBAR OCAMPO | F164: PRESENCIAL | G164: Cad calle 26 mod-152 | I164: Ciudadanía | J164: Hombre | K164: Padre/madre cabeza de familia | M164: De 45 a 54 | N164: Asesoría | O164: Incorporación y entrega de las áreas de cesión a favor del municipio | P164: Cabida y linderos | Q164: RADICADO 20202030118701 - 2020EE454 | R164: Atención presencial | T164: 11 suba
A165: 164 | B165: 2021 | C165: ENERO | D165: 44221 | E165: ALBEIRO ESCOBAR OCAMPO | F165: PRESENCIAL | G165: Cad calle 26 mod-152 | I165: Ciudadanía | J165: Mujer | K165: Padre/madre cabeza de familia | M165: De 35 a 44 | N165: Asesoría | O165: Certificación de la propiedad inmobiliaria distrital | P165: Certificación de la propiedad inmobiliaria distrital | Q165: CERTIFICACION RUPI 2646-44 (CASETA EN ESPACIO PUBLICO CENTRO COMERCIAL) | R165: Atención presencial | T165: 11 suba
A166: 165 | B166: 2021 | C166: ENERO | D166: 44221 | E166: ALBEIRO ESCOBAR OCAMPO | F166: PRESENCIAL | G166: Cad calle 26 mod-152 | I166: Ciudadanía | J166: Mujer | K166: Padre/madre cabeza de familia | M166: De 35 a 44 | N166: Asesoría | O166: Incorporación y entrega de las áreas de cesión a favor del municipio | P166: Cabida y linderos | Q166: CABIDA Y LINDEROS KR 57 159 68 AAA0118KZNX | R166: Atención presencial | T166: 11 suba
A167: 166 | B167: 2021 | C167: ENERO | D167: 44221 | E167: ALBEIRO ESCOBAR OCAMPO | F167: PRESENCIAL | G167: Cad calle 26 mod-152 | I167: Ciudadanía | J167: Mujer | K167: Padre/madre cabeza de familia | M167: 65 y mas | N167: Asesoría | O167: Incorporación y entrega de las áreas de cesión a favor del municipio | P167: Cabida y linderos | Q167: CABIDA Y LINDEROS | R167: Atención presencial | T167: 11 suba
A168: 167 | B168: 2021 | C168: ENERO | D168: 44221 | E168: ALBEIRO ESCOBAR OCAMPO | F168: PRESENCIAL | G168: Cad calle 26 mod-152 | I168: Ciudadanía | J168: Hombre | K168: Padre/madre cabeza de familia | M168: De 45 a 54 | N168: Asesoría | O168: Incorporación y entrega de las áreas de cesión a favor del municipio | P168: Cabida y linderos | Q168: RADICADO 20202030088481 | R168: Atención presencial | T168: 06 tunjuelito
A169: 168 | B169: 2021 | C169: ENERO | D169: 44221 | E169: ALBEIRO ESCOBAR OCAMPO | F169: PRESENCIAL | G169: Cad calle 26 mod-152 | I169: Ciudadanía | J169: Hombre | K169: Padre/madre cabeza de familia | M169: De 45 a 54 | N169: Asesoría | O169: Certificación de la propiedad inmobiliaria distrital | P169: Certificación de la propiedad inmobiliaria distrital | Q169: RADICADO 20204000161812 - 20212010000121 RUPI 2135-20 | R169: Atención presencial | T169: 05 usme
A170: 169 | B170: 2021 | C170: ENERO | D170: 44222 | E170: ALBEIRO ESCOBAR OCAMPO | F170: PRESENCIAL | G170: Cad calle 26 mod-152 | I170: Ciudadanía | J170: Hombre | K170: Padre/madre cabeza de familia | M170: De 35 a 44 | N170: Asesoría | O170: Certificación de la propiedad inmobiliaria distrital | P170: Certificación de la propiedad inmobiliaria distrital | Q170: COPIA RESOLUCION RUPI 1301 | R170: Atención presencial | T170: 09 fontibón
A171: 170 | B171: 2021 | C171: ENERO | D171: 44222 | E171: ALBEIRO ESCOBAR OCAMPO | F171: PRESENCIAL | G171: Cad calle 26 mod-152 | I171: Ciudadanía | J171: Hombre | K171: Padre/madre cabeza de familia | M171: De 35 a 44 | N171: Asesoría | O171: Certificación de la propiedad inmobiliaria distrital | P171: Certificación de la propiedad inmobiliaria distrital | Q171: CERTIFICACION DE RIESGO Y OCUPACION ESPACIO PUBLICO | R171: Atención presencial | T171: 18 rafael uribe uribe
A172: 171 | B172: 2021 | C172: ENERO | D172: 44222 | E172: ALBEIRO ESCOBAR OCAMPO | F172: PRESENCIAL | G172: Cad calle 26 mod-152 | I172: Ciudadanía | J172: Hombre | K172: Padre/madre cabeza de familia | M172: 65 y mas | N172: Asesoría | O172: Incorporación y entrega de las áreas de cesión a favor del municipio | P172: Cabida y linderos | Q172: CABIDA Y LINDEROS 20204000059752 - 2020EE13481 | R172: Atención presencial | T172: 09 fontibón
A173: 172 | B173: 2021 | C173: ENERO | D173: 44222 | E173: ALBEIRO ESCOBAR OCAMPO | F173: PRESENCIAL | G173: Cad calle 26 mod-152 | I173: Ciudadanía | J173: Hombre | K173: Padre/madre cabeza de familia | M173: De 35 a 44 | N173: Asesoría | O173: Certificación de la propiedad inmobiliaria distrital | P173: Certificación de la propiedad inmobiliaria distrital | Q173: CERTIFICACION RUPI 1144-10 | R173: Atención presencial | T173: 07 bosa
A174: 173 | B174: 2021 | C174: ENERO | D174: 44223 | E174: ALBEIRO ESCOBAR OCAMPO | F174: PRESENCIAL | G174: Cad calle 26 mod-152 | I174: Ciudadanía | J174: Hombre | K174: Padre/madre cabeza de familia | M174: De 45 a 54 | N174: Asesoría | O174: Asesoría en administración y sostenibilidad del espacio público | P174: Asesoría en administración y sostenibilidad del espacio público | Q174: PERMISO PARA FOOD TRUCKS | R174: Atención presencial | T174: 12 barrios unidos
A175: 174 | B175: 2021 | C175: ENERO | D175: 44223 | E175: ALBEIRO ESCOBAR OCAMPO | F175: PRESENCIAL | G175: Cad calle 26 mod-152 | I175: Ciudadanía | J175: Hombre | K175: Padre/madre cabeza de familia | M175: 65 y mas | N175: Asesoría | O175: Incorporación y entrega de las áreas de cesión a favor del municipio | P175: Cabida y linderos | Q175: CABIDA Y LINDEROS 20204000099852 | R175: Atención presencial | T175: 09 fontibón
A176: 175 | B176: 2021 | C176: ENERO | D176: 44223 | E176: ALBEIRO ESCOBAR OCAMPO | F176: PRESENCIAL | G176: Cad calle 26 mod-152 | I176: Ciudadanía | J176: Hombre | K176: Padre/madre cabeza de familia | M176: 65 y mas | N176: Asesoría | O176: Certificación de la propiedad inmobiliaria distrital | P176: Certificación de la propiedad inmobiliaria distrital | Q176: CERTIFICACION PREDIO DEL ACUEDUCTO CL 11S 24A 01 | R176: Atención presencial | T176: 15 antonio nariño
A177: 176 | B177: 2021 | C177: ENERO | D177: 44223 | E177: ALBEIRO ESCOBAR OCAMPO | F177: PRESENCIAL | G177: Cad calle 26 mod-152 | I177: Ciudadanía | J177: Mujer | K177: Padre/madre cabeza de familia | M177: De 35 a 44 | N177: Asesoría | O177: Certificación de la propiedad inmobiliaria distrital | P177: Certificación de la propiedad inmobiliaria distrital | Q177: CERTIFICACION RUPI 2188-3 | R177: Atención presencial | T177: 07 bosa
A178: 177 | B178: 2021 | C178: ENERO | D178: 44223 | E178: ALBEIRO ESCOBAR OCAMPO | F178: PRESENCIAL | G178: Cad calle 26 mod-152 | I178: Ciudadanía | J178: Mujer | K178: Padre/madre cabeza de familia | M178: 65 y mas | N178: Asesoría | O178: Consulta general | P178: Oferta de servicios | Q178: PERMISO TRABAJO EN ESPACIO PUBLICO - IPES | R178: Atención presencial | T178: 19 ciudad bolívar
A179: 178 | B179: 2021 | C179: ENERO | D179: 44223 | E179: ALBEIRO ESCOBAR OCAMPO | F179: PRESENCIAL | G179: Cad calle 26 mod-152 | I179: Ciudadanía | J179: Mujer | K179: Padre/madre cabeza de familia | M179: De 45 a 54 | N179: Asesoría | O179: Incorporación y entrega de las áreas de cesión a favor del municipio | P179: Cabida y linderos | Q179: CABIDA Y LINDEROS 20204000160192 - 2020EE45241 | R179: Atención presencial | T179: 05 usme
A180: 179 | B180: 2021 | C180: ENERO | D180: 44224 | E180: ALBEIRO ESCOBAR OCAMPO | F180: PRESENCIAL | G180: Cad calle 26 mod-152 | I180: Ciudadanía | J180: Hombre | K180: Padre/madre cabeza de familia | M180: De 45 a 54 | N180: Asesoría | O180: Incorporación y entrega de las áreas de cesión a favor del municipio | P180: Cabida y linderos | Q180: CABIDA Y LINDEROS 20204000133152 - 2020EE33913 | R180: Atención presencial | T180: 12 barrios unidos
A181: 180 | B181: 2021 | C181: ENERO | D181: 44224 | E181: ALBEIRO ESCOBAR OCAMPO | F181: PRESENCIAL | G181: Cad calle 26 mod-152 | I181: Ciudadanía | J181: Mujer | K181: Padre/madre cabeza de familia | M181: 65 y mas | N181: Asesoría | O181: Incorporación y entrega de las áreas de cesión a favor del municipio | P181: Cabida y linderos | Q181: CABIDA Y LINDEROS | R181: Atención presencial | T181: 11 suba
A182: 181 | B182: 2021 | C182: ENERO | D182: 44224 | E182: ALBEIRO ESCOBAR OCAMPO | F182: PRESENCIAL | G182: Cad calle 26 mod-152 | I182: Ciudadanía | J182: Mujer | K182: Padre/madre cabeza de familia | M182: 65 y mas | N182: Asesoría | O182: Asesoría en administración y sostenibilidad del espacio público | P182: Denuncia Cerramiento | Q182: CONSTRUCCION SIN LICENCIA | R182: Atención presencial | T182: 10 engativá
A183: 182 | B183: 2021 | C183: ENERO | D183: 44225 | E183: ALBEIRO ESCOBAR OCAMPO | F183: PRESENCIAL | G183: Cad calle 26 mod-152 | I183: Ciudadanía | J183: Hombre | K183: Padre/madre cabeza de familia | M183: De 35 a 44 | N183: Asesoría | O183: Incorporación y entrega de las áreas de cesión a favor del municipio | P183: Cabida y linderos | Q183: RADICADO 20204000147722 | R183: Atención presencial | T183: 19 ciudad bolívar
A184: 183 | B184: 2021 | C184: ENERO | D184: 44225 | E184: ALBEIRO ESCOBAR OCAMPO | F184: PRESENCIAL | G184: Cad calle 26 mod-152 | I184: Ciudadanía | J184: Hombre | K184: Padre/madre cabeza de familia | M184: De 45 a 54 | N184: Asesoría | O184: Asesoría en administración y sostenibilidad del espacio público | P184: Asesoría en administración y sostenibilidad del espacio público | Q184: ACTIVIDAD COMERCIAL ZONA BAJA PUENTES PEATONALES Y VEHICULARES | R184: Atención presencial | T184: 13 teusaquillo
A185: 184 | B185: 2021 | C185: ENERO | D185: 44225 | E185: ALBEIRO ESCOBAR OCAMPO | F185: PRESENCIAL | G185: Cad calle 26 mod-152 | I185: Ciudadanía | J185: Hombre | K185: Padre/madre cabeza de familia | M185: De 45 a 54 | N185: Asesoría | O185: Asesoría en administración y sostenibilidad del espacio público | P185: Asesoría en administración y sostenibilidad del espacio público | Q185: CAMBIO DE USO VIA PEATONAL | R185: Atención presencial | T185: 08 kennedy
A186: 185 | B186: 2021 | C186: ENERO | D186: 44200 | E186: CLAUDIA PATRICIA QUINTERO CACERES | F186: TELEFÓNICO | G186: Conmutador | I186: Ciudadanía | J186: Mujer | N186: Consulta | O186: Consulta general | P186: Consulta radicado | Q186: 0 | R186: 0 | S186: 0 | T186: 11 suba
A187: 186 | B187: 2021 | C187: ENERO | D187: 44200 | E187: CLAUDIA PATRICIA QUINTERO CACERES | F187: TELEFÓNICO | G187: Conmutador | I187: Ciudadanía | J187: Mujer | N187: Consulta | O187: Incorporación y entrega de las áreas de cesión a favor del municipio | P187: Entrega de zonas de cesión | Q187: 0 | R187: 0 | S187: 0 | T187: 11 suba
A188: 187 | B188: 2021 | C188: ENERO | D188: 44200 | E188: CLAUDIA PATRICIA QUINTERO CACERES | F188: TELEFÓNICO | G188: Conmutador | I188: Entidades y Organismos Distritales | J188: Mujer | N188: Consulta | O188: Consulta general | P188: Información pública | Q188: 0 | R188: 0 | S188: 0 | T188: 17 la candelaria
A189: 188 | B189: 2021 | C189: ENERO | D189: 44200 | E189: CLAUDIA PATRICIA QUINTERO CACERES | F189: TELEFÓNICO | G189: Conmutador | I189: Ciudadanía | J189: Hombre | N189: Consulta | O189: Asesoría en administración y sostenibilidad del espacio público | P189: Denuncia otros elementos | Q189: 0 | R189: 0 | S189: 0 | T189: 11 suba
A190: 189 | B190: 2021 | C190: ENERO | D190: 44200 | E190: CLAUDIA PATRICIA QUINTERO CACERES | F190: TELEFÓNICO | G190: Conmutador | I190: Entidades y Organismos Distritales | J190: Mujer | N190: Consulta | O190: Consulta general | P190: Información pública | Q190: 0 | R190: 0 | S190: 0 | T190: 08 kennedy
A191: 190 | B191: 2021 | C191: ENERO | D191: 44200 | E191: CLAUDIA PATRICIA QUINTERO CACERES | F191: TELEFÓNICO | G191: Conmutador | I191: Ciudadanía | J191: Hombre | N191: Consulta | O191: Consulta general | P191: Consulta radicado | Q191: 0 | R191: 0 | S191: 0 | T191: 16 puente aranda
A192: 191 | B192: 2021 | C192: ENERO | D192: 44200 | E192: CLAUDIA PATRICIA QUINTERO CACERES | F192: TELEFÓNICO | G192: Conmutador | I192: Ciudadanía | J192: Mujer | N192: Consulta | O192: Asesoría en administración y sostenibilidad del espacio público | P192: Denuncia Construcción ilegal | Q192: 0 | R192: 0 | S192: 0 | T192: 04 san cristóbal
A193: 192 | B193: 2021 | C193: ENERO | D193: 44200 | E193: CLAUDIA PATRICIA QUINTERO CACERES | F193: TELEFÓNICO | G193: Conmutador | I193: Ciudadanía | J193: Hombre | N193: Consulta | O193: Consulta general | P193: Información pública | Q193: 0 | R193: 0 | S193: 0 | T193: 01 usaquén
A194: 193 | B194: 2021 | C194: ENERO | D194: 44200 | E194: CLAUDIA PATRICIA QUINTERO CACERES | F194: TELEFÓNICO | G194: Conmutador | I194: Ciudadanía | J194: Hombre | N194: Consulta | O194: Consulta general | P194: Información pública | Q194: 0 | R194: 0 | S194: 0 | T194: 01 usaquén
A195: 194 | B195: 2021 | C195: ENERO | D195: 44200 | E195: CLAUDIA PATRICIA QUINTERO CACERES | F195: TELEFÓNICO | G195: Conmutador | I195: Entidades y Organismos Distritales | J195: Hombre | N195: Consulta | O195: Consulta general | P195: Información pública | Q195: 0 | R195: 0 | S195: 0 | T195: 03 santa fe
A196: 195 | B196: 2021 | C196: ENERO | D196: 44200 | E196: CLAUDIA PATRICIA QUINTERO CACERES | F196: TELEFÓNICO | G196: Conmutador | I196: Entidades y Organismos Distritales | J196: Hombre | N196: Consulta | O196: Consulta general | P196: Información pública | Q196: 0 | R196: 0 | S196: 0 | T196: 09 fontibón
A197: 196 | B197: 2021 | C197: ENERO | D197: 44200 | E197: CLAUDIA PATRICIA QUINTERO CACERES | F197: TELEFÓNICO | G197: Conmutador | I197: Entidades y Organismos Distritales | J197: Hombre | N197: Consulta | O197: Consulta general | P197: Información pública | Q197: 0 | R197: 0 | S197: 0 | T197: 09 fontibón
A198: 197 | B198: 2021 | C198: ENERO | D198: 44201 | E198: CLAUDIA PATRICIA QUINTERO CACERES | F198: TELEFÓNICO | G198: Conmutador | I198: Ciudadanía | J198: Mujer | N198: Consulta | O198: Incorporación y entrega de las áreas de cesión a favor del municipio | P198: Entrega de zonas de cesión | Q198: Proceso VUC | R198: 0 | S198: 0 | T198: 01 usaquén
A199: 198 | B199: 2021 | C199: ENERO | D199: 44201 | E199: CLAUDIA PATRICIA QUINTERO CACERES | F199: TELEFÓNICO | G199: Conmutador | I199: Ciudadanía | J199: Mujer | N199: Consulta | O199: Consulta general | P199: Consulta radicado | Q199: rad 20204000154672 | R199: 0 | S199: 0 | T199: 16 puente aranda
A200: 199 | B200: 2021 | C200: ENERO | D200: 44201 | E200: CLAUDIA PATRICIA QUINTERO CACERES | F200: TELEFÓNICO | G200: Conmutador | I200: Ciudadanía | J200: Mujer | N200: Consulta | O200: Consulta general | P200: Información pública | Q200: 0 | R200: 0 | S200: 0 | T200: 17 la candelaria
... 4300 more rows
